{"text_format":"1","workbook":"xlsx","n_sheets":10,"sheets":["Angaben für Ihr Catering","Zusammenfassung","Coffeebreak","Working Lunch","Apéro","Getränke","Miete Geschirr","VIP-Lunch","AGB","Anzeige"],"not_rendered":{"charts":0,"images":5,"macros":1,"external_links":0,"defined_names":12,"comments":0,"pivot_tables":1},"unopened":[],"bounds":{"document_bytes":16777216,"sheet_cells":100000,"rows_first":2000,"rows_last":500,"rows_between":2000,"halvings":0,"cell_chars":16384,"cell_head_chars":4096},"cells_cut":0,"cells_raw":0,"read":"whole","date_system":"1900"}

{"sheet":"Angaben für Ihr Catering","index":0,"n_rows":34,"n_cols":5,"rows_kept":34,"cut":false,"hidden":false,"merged":[[2,8,2,14],[24,3,24,6],[25,3,25,6],[26,3,26,6],[17,3,17,6],[20,3,20,6],[21,3,21,6],[22,3,22,6],[23,3,23,6],[1,0,1,6],[0,0,0,6],[2,0,2,6],[37,0,37,6],[5,3,5,6],[6,3,6,6],[14,3,14,6],[7,3,7,6],[8,3,8,6],[9,3,9,6],[12,3,12,6],[13,3,13,6],[16,3,16,6]]}
[]
["Catering Hard Rück Cafe"]
["Bestellfristen: 1-50 Personen 2 Tage vor dem Anlass bis 10.00 Uhr / 51-100 Personen 5 Tage vor dem Anlass \nbis 10.00 Uhr / mehr als 100 Personen 10 Tage vor dem Anlass bis 10.00 Uhr."]
[]
["Angaben des Bestellers"]
["Firma"]
["Vorname/Name"]
["Strasse"]
["PLZ / Ort"]
["Telefon / E-Mail"]
[]
["Rechnungsadresse"]
["Firma"]
["Vorname / Name"]
["Kostenstelle"]
["Kostenart"]
["Strasse"]
["PLZ / Ort"]
[]
["Angaben zur Veranstaltung"]
["Veranstaltungs-Raum"]
["Name der Veranstaltung"]
["Anzahl Teilnehmer"]
["Datum und Zeit der Lieferung / Abholung"]
["Ende der Veranstaltung"]
["Bemerkungen"]
[]
[]
[null,null,null,null," "]
[null,false,"Bestellung wird abgeholt"]
[null,null,"Mit Service während der Veranstaltung"]
[null,null,"Einrichten des Raumes gewünscht"]
[]
[null,"Der Besteller/die Bestellerin akzeptiert die Allgemeinen Geschäftsbedingungen von Eldora."]

{"sheet":"Zusammenfassung","index":1,"n_rows":10,"n_cols":3,"rows_kept":10,"cut":false,"hidden":false,"merged":[[1,0,1,4]]}
[]
["Zusammenfassung Ihrer Bestellung"]
[]
[]
["anzeige","x"]
[]
["Bestellung","Bestellung","Totalbetrag"]
["Coffeebreak",2,2.8]
["Laugengipfel",2,2.8]
["Gesamttotal",2,2.8]

{"sheet":"Coffeebreak","index":2,"n_rows":87,"n_cols":10,"rows_kept":87,"cut":false,"hidden":false,"merged":[[2,0,2,7],[58,0,58,7],[0,0,0,6],[1,0,1,7],[32,0,32,7]]}
[]
["Coffeebreak"]
["Morning Coffeebreak"]
[null,null,"GEBÄCK",null,"Preis",null,"Einheit","Betrag inkl.  MwSt"]
[]
[null,null,"Buttergipfel",null,1.4,"/","Stk.",{"$f":"A6*E6","v":0}]
[null,null,"Laugengipfel",null,1.4,"/","Stk.",0]
[null,null,"Rusticogipfel",null,1.4,"/","Stk.",{"$f":"A8*E8","v":0}]
[null,null,"Cailler Schoggigipfel",null,2.6,"/","Stk.",0]
[null,null,"Ovo Crunchy Roll",null,2.6,"/","Stk.",0]
[null,null,"Diverse Brötli  assortiert",null,1.5,"/","Stk.",0]
[]
[null,null,"EXTRAS"]
[]
[null,null,"Butter Portion",null,0.8,"/","Stk.",{"$f":"A15*E15","v":0}]
[null,null,"Konfitüre Portion",null,0.8,"/","Stk.",0]
[null,null,"Honig Portion",null,0.8,"/","Stk.",0]
[]
[null,null,"BREAKFAST PLUS"]
[]
[null,null,"Swiss Classic Birchermüesli im Glas",null,3.5,"/","Stk.",{"$f":"A21*E21","v":0}]
[null,null,"Joghurt laktosefrei diverse Sorten im Becher",null,1.5,"/","Stk.",0]
[null,null,"Frisch gepresster Orangensaft",null,4.5,"/","3dl",0]
[null,null,"Saisonaler Smoothie",null,4.5,"/","3dl",0]
[null,null,"z.B Erdbeer, Kiwi, Mango, Waldbeeren ",null,null,null,null,null,null,{"$f":"IF(ISBLANK(A28),\"\",C28)","v":""}]
[null,null,"FRUITS"]
[]
[null,null,"Fruchtsalat im Glas",null,3.5,"/","Stk.",{"$f":"A28*E28","v":0}]
[null,null,"Früchtekorb für 1-8 Personen",null,12,"/","Stk.",0]
[null,null,"Früchtekorb für 9-15 Personen",null,21,"/","Stk.",0]
[]
[]
["Coffeebreak à la Carte"]
[]
[null,null,"SWEET BAKERY",null,"Preis",null,"Einheit","Betrag inkl.  MwSt"]
[]
[null,null,"Nuss- / Mandelgipfel",null,2.9,"/","Stk.",{"$f":"A37*E37","v":0}]
[null,null,"Vanillecrèmegipfel",null,2.9,"/","Stk."]
[null,null,"Brownie",null,3,"/","Stk."]
[null,null,"Trockengebäck   assortiert",null,2,"/","Stk."]
[null,null,"Mini-Patisserie    assortiert",null,2,"/","Stk."]
[null,null,"Muffins Schoggi, Blueberry, Zitrone-Kokos",null,2.9,"/","Stk.",0]
[null,null,"Mini Cake Schoggi, Marmor, Zitonen, Rüebli",null,2.9,"/","Stk.",0]
[null,null,"Streuselkuchen Zwetschge, Aprikose, Kirsche",null,3.5,"/","Stk.",{"$f":"A44*E44","v":0}]
[]
[null,null,"MINI SANDICHES      Mindestbestellmenge: 5 Stück"]
[]
[null,null,"In 5 versch. Brötli (assortiert: Nature, Mehrkorn, Tomate, Oliven, Feta-Peperoni, Walnuss-Haselnuss)"]
[null,null,"Brie & Birnen",null,3.5,"/","Stk.",{"$f":"A49*E49","v":0}]
[null,null,"Ei & Kresse",null,3.5,"/","Stk.",{"$f":"A50*E50","v":0}]
[null,null,"Sternenberger Käse",null,3.5,"/","Stk.",0]
[null,null,"Salami",null,3.5,"/","Stk.",0]
[null,null,"Gekochter Schinken",null,3.5,"/","Stk.",0]
[null,null,"Rohschinken & Rucola",null,3.5,"/","Stk.",0]
[null,null,"Mostbröckli",null,3.5,"/","Stk.",0]
[null,null,"Lachs, Zwiebeln & Kapern",null,3.5,"/","Stk.",0]
[null,null,"Thonmousse mit Mayonnaise",null,3.5,"/","Stk.",0]
[]
["Coffeebreak Packages (MORNING & AFTERNOON)"]
[null,null,null,null,"Preis",null,"Einheit","Betrag inkl.  MwSt"]
[]
[null,null,"MORNING BREAK basic",null,10.5,"/","Pers.",{"$f":"A62*E62","v":0}]
[null,null,"ab 5 Personen"]
[null,null,"Auswahl von Buttergipfel, Laugengipfel, "]
[null,null,"Rusticogipfel, Kaffee, Tee, Mineralwasser"]
[]
[null,null,"MORNING BREAK classic",null,13.5,"/","Pers.",{"$f":"A67*E67","v":0}]
[null,null,"ab 5 Personen"]
[null,null,"Auswahl von Buttergipfel, Laugengipfel, "]
[null,null,"Rusticogipfel, Kaffee, Tee, Mineralwasser"]
[null,null,"Softgetränke, Orangensaft, Früchteschale"]
[]
[null,null,"MORNING BREAK sunrise",null,18.5,"/","Pers.",{"$f":"A73*E73","v":0}]
[null,null,"ab 20 Personen"]
[null,null,"Auswahl von Buttergipfel, Laugengipfel, "]
[null,null,"Rusticogipfel, Kaffee, Tee, Mineralwasser"]
[null,null,"Softgetränke, Orangensaft, Früchteschale"]
[null,null,"Kleinbrötli, Birchermüesli im Glas, kleiner Schinken-Käseteller"]
[]
[null,null,"AFTERNOON BREAK light",null,9,"/","Pers.",{"$f":"A80*E80","v":0}]
[null,null,"ab 5 Personen"]
[null,null,"Kaffee, Tee, Mineralwasser, Softgetränke, Orangensaft"]
[]
[null,null,"AFTERNOON BREAK sweet",null,13.5,"/","Pers.",{"$f":"A84*E84","v":0}]
[null,null,"ab 10 Personen"]
[null,null,"Kaffee, Tee, Mineralwasser, Softgetränke, Orangensaft, "]
[null,null,"Kaffeegebäck assortiert"]

{"sheet":"Working Lunch","index":3,"n_rows":50,"n_cols":8,"rows_kept":50,"cut":false,"hidden":false,"merged":[[41,0,41,7],[0,0,0,6],[1,0,1,7],[40,0,40,7],[25,0,25,7],[2,0,2,7]]}
[]
["Working Lunch"]
["Homemade Sandwiches 52cm"]
[]
[null,null,"1 PARISETTE = CA. 5 PERSONEN",null,"Preis",null,"Einheit","Betrag inkl.  MwSt"]
[]
[null,null,"Parisette Laugen",null,35,"/","Stk.",{"$f":"A7*E7","v":0}]
[null,null,"Brie, Butter, Lollosalat, Gurken, Tomaten, Baumnüsse"]
[]
[null,null,"Parisette Laugen",null,35,"/","Stk.",{"$f":"A10*E10","v":0}]
[null,null,"Bergkäse, Eier, Mayonnaise, Gurken, Kresse"]
[]
[null,null,"Parisette hell",null,35,"/","Stk.",{"$f":"A13*E13","v":0}]
[null,null,"Tomate, Mozzarella, Basilikum, Pesto und Rucola"]
[]
[null,null,"Parisette hell",null,35,"/","Stk.",{"$f":"A16*E16","v":0}]
[null,null,"Trutenbrust, Ei, Tartarsauce, Cornichons, Tomate, Lollosalat"]
[]
[null,null,"Parisette dunkel",null,40,"/","Stk.",{"$f":"A19*E19","v":0}]
[null,null,"Rauchlachs, Cantadou, Kopfsalat, Kapern, Zwiebeln, Meerrettich "]
[]
[null,null,"Parisette dunkel",null,40,"/","Stk.",{"$f":"A22*E22","v":0}]
[null,null,"Roastbeef, Coleslaw, Tomate, Senfbutter, Eisbergsalat"]
[]
[]
["Lunch Packages"]
[]
[null,null,null,null,"Preis",null,"Einheit","Betrag inkl.  MwSt"]
[null,null,"LUNCH PACKAGE Sandwich",null,19.5,"/","Pers.",{"$f":"A29*E29","v":0}]
[null,null,"Ab 10 Personen"]
[null,null,"Assortierte Sandwich-Platte mit 3 Sandwiches pro Person"]
[null,null,"1 Softdrink 0.5l nach Wahl"]
[]
[null,null,"LUNCH PACKAGE Platte",null,19.5,"/","Pers.",{"$f":"A34*E34","v":0}]
[null,null,"Ab 20 Personen"]
[null,null,"Käseplatte mit diversem Hart-und Weichkäse, Fleischplatte mit diversen Fleischsorten"]
[null,null,"garniert mit Huusbrot & Baguette"]
[null,null,"Gemischter Menüsalat mit Dressing"]
[null,null,"1 Softdrink 0.5l nach Wahl"]
[]
[]
["Desserts Working Lunch"]
[]
[null,null,"DESSERT",null,"Preis",null,"Einheit","Betrag inkl.  MwSt"]
[]
[null,null,"Petit fours / 2 Stück, gemischt",null,3,"/","Stk.",{"$f":"A46*E46","v":0}]
[null,null,"Schokoladenmousse",null,3.5,"/","Stk.",{"$f":"A47*E47","v":0}]
[null,null,"Fruchtsalat im Glas",null,3.5,"/","Stk.",0]
[null,null,"Panna Cotta mit saisonalem Topping",null,3.5,"/","Stk.",0]
[null,null,"Mini Patisserie / assortiert",null,2.7,"/","Stk.",0]

{"sheet":"Apéro","index":4,"n_rows":140,"n_cols":8,"rows_kept":140,"cut":false,"hidden":false,"merged":[[108,0,108,7],[64,0,64,7],[1,0,1,7],[2,0,2,7],[45,0,45,7],[46,0,46,7]]}
[]
["Apéro"]
["Apéro Packages"]
[]
[null,null,"Ab 5 Personen / je 1 Stück pro Person",null,"Preis",null,"Einheit","Betrag inkl.  MwSt"]
[]
[null,null,"Small Apéro",null,8.5,"/","Person",{"$f":"A8*E7","v":0}]
[null,null,"Nüssli, Chips, Blätterteigstangen "]
[]
[null,null,"Swiss Apéro",null,12.5,"/","Person",{"$f":"A10*E10","v":0}]
[null,null,"Party Chäschüechli"]
[null,null,"Party Schinkengipfeli"]
[null,null,"Blätterteiggebäck"]
[null,null,"Gemüsesticks mit Dip"]
[]
[null,null,"Mediterran Apéro",null,19.5,"/","Person",{"$f":"A16*E16","v":0}]
[null,null,"Marinierte Oliven und Parmesanmöckli"]
[null,null,"Grissini mit Rohschinken"]
[null,null,"Party Minipizza"]
[null,null,"Tomaten-Mozzarella Spiessli mit Balsamico"]
[null,null,"Bruschetta mit frischen Tomaten, Basilikum und Olivenöl"]
[null,null,"Vitello Tonnato"]
[]
[null,null,"Asia Apéro",null,19.5,"/","Person",{"$f":"A24*E24","v":0}]
[null,null,"Curry Cashews"]
[null,null,"Mini-Frühlingsrolle mit Sweet Chilisauce"]
[null,null,"Mini-Gemüse-Samosas mit Curry-Joghurt-Dip"]
[null,null,"Glasnudelsalat mit Koreander"]
[null,null,"Tandoori Pouletspiessli mit Erdnusssauce"]
[null,null,"Crevette auf Mango-Chili-Salat"]
[]
[]
[]
[]
[]
[]
[]
[]
[]
[]
[]
[]
[]
[]
[]
[]
["Apéro Platten"]
[]
[null,null,"Alle Platten ab 4 Personen",null,"Preis",null,"Einheit","Betrag inkl.  MwSt"]
[]
[null,null,"Käseplatte",null,16.5,"/","Pers.",{"$f":"A51*E51","v":0}]
[null,null,"Diverse Hart- und Weichkäsesorten, "]
[null,null,"serviert mit Garnitur, Huusbrot und Baguette"]
[]
[null,null,"Älplerplatte",null,18.5,"/","Pers.",{"$f":"A55*E55","v":0}]
[null,null,"Diverse Aufschnittsorten, Bergkäse"]
[null,null,"serviert mit Garnitur, Huusbrot und Baguette"]
[]
[null,null,"Fleischplatte",null,19.5,"/","Pers.",{"$f":"A59*E59","v":0}]
[null,null,"Diverse Aufschnittsorten ohne Schweinefleisch (z.B. Mostbröckli, "]
[null,null,"Bündnerfleisch, Pastrami, Trutenbrust, Roastbeef) "]
[null,null,"serviert mit Garnitur, Huusbrot und Baguette"]
[]
[]
["Apéro Brote"]
[]
[]
[null,null,"HOMEMADE SANDWICHES 52CM / 1 PARISETTE = CA. 5 PERSONEN",null,"Preis",null,"Einheit","Betrag inkl.  MwSt"]
[]
[null,null,"Parisette Laugen",null,35,"/","Stk.",{"$f":"A70*E70","v":0}]
[null,null,"Brie, Butter, Lollosalat, Gurken, Tomaten, Baumnüsse"]
[]
[null,null,"Parisette Laugen",null,35,"/","Stk.",{"$f":"A73*E73","v":0}]
[null,null,"Bergkäse, Eier, Mayonnaise, Gurken, Kresse"]
[]
[null,null,"Parisette hell",null,35,"/","Stk.",{"$f":"A76*E76","v":0}]
[null,null,"Tomate, Mozzarella, Basilikum, Pesto und Rucola"]
[]
[null,null,"Parisette hell",null,35,"/","Stk.",{"$f":"A79*E79","v":0}]
[null,null,"Trutenbrust, Ei, Tartarsauce, Cornichons, Tomate, Lollosalat"]
[]
[null,null,"Parisette dunkel",null,40,"/","Stk.",{"$f":"A82*E82","v":0}]
[null,null,"Rauchlachs, Cantadou, Kopfsalat, Kapern, Zwiebeln, Meerrettich "]
[]
[null,null,"Parisette dunkel",null,40,"/","Stk.",{"$f":"A85*E85","v":0}]
[null,null,"Roastbeef, Coleslaw, Tomate, Senfbutter, Eisbergsalat"]
[]
[]
[null,null,"MINI SANDICHES      Mindestbestellmenge: 5 Stück"]
[]
[null,null,"In 5 versch. Brötli (assortiert: Nature, Mehrkorn, Tomate, Oliven, Feta-Peperoni, Walnuss-Haselnuss)"]
[null,null,"Brie & Birnen",null,3.5,"/","Stk.",{"$f":"A92*E92","v":0}]
[null,null,"Ei & Kresse",null,3.5,"/","Stk.",{"$f":"A93*E93","v":0}]
[null,null,"Sternenberger Käse",null,3.5,"/","Stk.",0]
[null,null,"Salami",null,3.5,"/","Stk.",0]
[null,null,"Gekochter Schinken",null,3.5,"/","Stk.",0]
[null,null,"Rohschinken & Rucola",null,3.5,"/","Stk.",0]
[null,null,"Mostbröckli",null,3.5,"/","Stk.",0]
[null,null,"Lachs, Zwiebeln & Kapern",null,3.5,"/","Stk.",0]
[null,null,"Thonmousse mit Mayonnaise",null,3.5,"/","Stk.",0]
[]
[]
[]
[]
[]
[]
[]
[]
["Apéro à la carte"]
[]
[null,null,"Mindestbestellmenge: 6 Stück pro Sorte",null,"Preis",null,"Einheit","Betrag inkl.  MwSt"]
[]
[null,null,"FINGERFOOD kalt"]
[]
[null,null,"Crudité mit 2 Dips",null,3,"/","Port.",{"$f":"A115*E115","v":0}]
[null,null,"Marinierte Oliven & Parmesanmöckli",null,6,"/","Port.",0]
[null,null,"Bruschetta mit Tomaten & Basilikum ",null,3,"/","Stk.",0]
[null,null,"Tomaten-Mozzarella-Spiess",null,3,"/","Stk.",0]
[null,null,"Glasnudelsalat mit Koriander",null,3.5,"/","Stk.",0]
[null,null,"Vitello Tonnato mit Kapernäpfel",null,4,"/","Stk.",{"$f":"A120*E120","v":0}]
[null,null,"Tandoori Pouletspiessli mit Sataysauce ",null,4,"/","Stk.",0]
[null,null,"Rindstatar auf Crostini",null,4,"/","Stk.",0]
[null,null,"Crevette mit Mango-Chili-Salsa",null,4,"/","Stk.",{"$f":"A123*E123","v":0}]
[]
[null,null,"FINGERFOOD warm ",null,"Preis",null,"Einheit","Betrag inkl.  MwSt"]
[]
[null,null,"Mini Chäs-, Spinat-, Gemüsechüechli",null,2.5,"/","Stk.",{"$f":"A127*E127","v":0}]
[null,null,"Gemüse-Samosas mit Curry-Joghurt-Dip",null,2.5,"/","Stk.",0]
[null,null,"Frühlingsrolle mit Sweet-Chilisauce",null,2.5,"/","Stk.",0]
[null,null,"Schinkengipfeli",null,2.5,"/","Stk.",{"$f":"A130*E130","v":0}]
[null,null,"Mini Pizza ",null,3.5,"/","Stk.",0]
[null,null,"Mini-Burger mit Rindfleisch",null,4,"/","Stk.",0]
[null,null,"Saisonale Süppe im Glas",null,3,"/","Stk.",0]
[]
[null,null,"SWEET DREAMS"]
[]
[null,null,"Petit fours / 2 Stück, gemischt",null,3,"/","Stk.",{"$f":"A137*E137","v":0}]
[null,null,"Schokoladenmousse",null,3.5,"/","Stk.",0]
[null,null,"Fruchtsalat im Glas",null,3.5,"/","Stk.",0]
[null,null,"Mini Patisserie / assortiert",null,2.7,"/","Stk.",0]

{"sheet":"Getränke","index":5,"n_rows":92,"n_cols":8,"rows_kept":92,"cut":false,"hidden":false,"merged":[[61,0,61,7],[0,0,0,6],[43,0,43,7],[1,0,1,7],[46,0,46,7],[2,0,2,7],[45,0,45,7]]}
[]
["Getränke"]
["Softdrinks"]
[]
[null,null,null,null,"Preis",null,"Einheit","Betrag inkl.  MwSt"]
[null,null,"Kalte Getränke   I   5dl "]
[]
[null,null,"Valser mit Kohlensäure",null,2.5,"/","Stk.",{"$f":"A8*E8","v":0}]
[null,null,"Valser ohne Kohlensäure",null,2.5,"/","Stk.",0]
[null,null,"Valser Viva",null,2.8,"/","Stk.",{"$f":"A10*E10","v":0}]
[null,null,"Coca Cola",null,2.8,"/","Stk.",0]
[null,null,"Coca Cola Zero",null,2.8,"/","Stk.",0]
[null,null,"Sprite",null,2.8,"/","Stk.",0]
[null,null,"Fanta",null,2.8,"/","Stk.",0]
[null,null,"Rivella Rot",null,2.8,"/","Stk.",0]
[null,null,"Rivella Blau",null,2.8,"/","Stk.",{"$f":"A16*E16","v":0}]
[null,null,"Rivella Grün",null,2.8,"/","Stk.",0]
[null,null,"Neste Ice Tea  Lemon",null,2.8,"/","Stk.",0]
[null,null,"Cold Brew Black Tea ASSAM",null,2.8,"/","Stk.",0]
[null,null,"VIVITZ BIO-Eistee Zitrone",null,3.5,"/","Stk.",0]
[null,null,"VIVITZ BIO-Eistee Apfelminze",null,3.5,"/","Stk.",0]
[null,null,"VIVITZ BIO-Eistee Grüntee",null,3.5,"/","Stk.",{"$f":"A22*E22","v":0}]
[null,null,"VIVITZ BIO-Eistee Easy Fruits",null,3.5,"/","Stk.",{"$f":"A23*E23","v":0}]
[null,null,"Hausgemachter Eldora-Eistee Lemongrass-Ginger",null,2.5,"/","Stk.",0]
[null,null,"Hausgemachter Eldora-Eistee Hisbiskus-Rooibos",null,2.5,"/","Stk.",0]
[null,null,"VIVITZ Schorle Rhabarber",null,3.5,"/","Stk.",0]
[null,null,"VIVITZ Schorle Apfel-Holunder",null,3.5,"/","Stk.",{"$f":"A27*E27","v":0}]
[null,null,"BIO Apfelschorle",null,3.5,"/","Stk.",0]
[null,null,"Captain Kambucha",null,3.5,"/","Stk.",0]
[null,null,"Red Bull",null,3.8,"/","Stk.",0]
[]
[null,null,"Kalte Getränke   I   1 Liter"]
[]
[null,null,"Valser mit Kohlensäure",null,4.5,"/","lt",{"$f":"A34*E34","v":0}]
[null,null,"Valser ohne Kohlensäure",null,4.5,"/","lt",0]
[null,null,"Orangensaft, 1L",null,6.5,"/","lt",{"$f":"A36*E36","v":0}]
[null,null,"Orangensaft frisch gepresst, 1 L",null,15,"/","lt",0]
[]
[null,null,"Kaffee "]
[]
[null,null,"Espresso",null,0.5,"/","Stk.",{"$f":"A41*E41","v":0}]
[null,null,"Kaffee Crème",null,0.5,"/","Stk.",{"$f":"A42*E42","v":0}]
[null,null,"Tee",null,0.5,"/","Stk.",{"$f":"A43*E43","v":0}]
[]
[]
[]
["Alkoholische Getränke"]
[]
[null,null,null,null,"Preis",null,"Einheit","Betrag inkl.  MwSt"]
[null,null,"Schweizer Bier"]
[]
[null,null,"S`Bier","33cl",4.5,"/","Fl.",{"$f":"A52*E52","v":0}]
[null,null,"Feldschlösschen","33cl",3.5,"/","Fl.",0]
[null,null,"Quöllfrisch Bügelflasche ","50cl",5,"/","Fl.",{"$f":"A54*E54","v":0}]
[null,null,"CHOPFAB hell","33cl",4.5,"/","Fl.",0]
[null,null,"CHOPFAB amber","33cl",4.5,"/","Fl.",{"$f":"A56*E56","v":0}]
[null,null,"CHOPFAB trüeb","33cl",4.5,"/","Fl.",0]
[null,null,"CHOPFAB dunkel","33cl",4.5,"/","Fl.",0]
[null,null,"CHOPFAB weize","33cl",4.5,"/","Fl.",{"$f":"A59*E59","v":0}]
[null,null,"CHOPFAB bleifrei (Akoholfrei)","33cl",4.5,"/","Fl.",0]
[]
[]
[null,null,null,null,"Preis",null,"Einheit","Betrag inkl.  MwSt"]
[null,null,"Schaumwein"]
[]
[null,null,"Prosecco brut DOC / Alexander Treviso DOS, Italien","75cl",37,"/","Fl.",{"$f":"A66*E66","v":0}]
[null,null,"Rosé Spumante \"Motivo\" / Borgo Molino, Italien","75cl",39,"/","Fl.",0]
[null,null,"Champagner Laurent Perrier brut","75cl",65,"/","Fl.",0]
[]
[null,null,"Weisswein"]
[]
[null,null,"Mythos weiss VDP Suisse ","75cl",35,"/","Fl.",{"$f":"A72*E72","v":0}]
[null,null,"VdP Weingut Landolt, Kanton Zürich"]
[null,null,"Pinot Grigio Grivó ","75cl",38,"/","Fl.",{"$f":"A74*E74","v":0}]
[null,null,"Volpe Pasini, Friaul, Italien 2017"]
[null,null,"Maremma DOC ","75cl",42,"/","Fl.",{"$f":"A76*E76","v":0}]
[null,null,"Nudo bianco - Agircola del Nudo, Toscana, Italien"]
[null,null,"Langhe DOC ","75cl",46,"/","Fl.",{"$f":"A78*E78","v":0}]
[null,null,"100% Chardonnay, Massolino, Italien"]
[]
[null,null,"Rotwein"]
[]
[null,null,"Mythos rot VdP Suisse","75cl",35,"/","Fl.",{"$f":"A83*E83","v":0}]
[null,null,"VdP Weingut Landolt, Kanton Zürich"]
[null,null,"Due Veneto Rosso ","75cl",35,"/","Fl.",{"$f":"A85*E85","v":0}]
[null,null,"Gianni Tessari, Veneto, Italien"]
[null,null,"Nero d'Avola d'Altura ","75cl",42,"/","Fl.",{"$f":"A87*E87","v":0}]
[null,null,"100% Nero d'Avola, Sicilia DOC, Lombardo, Italien "]
[null,null,"Ripasso La Casetta ","75cl",47,"/","Fl.",{"$f":"A89*E89","v":0}]
[null,null,"Valpolicella classico sup. DOC Ripasso, Domini Veneti, Italien"]
[]
[null,null,"Wir beziehen unsere Weine von Vini Vergani sowie direkt vom Weingut Landolt."]

{"sheet":"Miete Geschirr","index":6,"n_rows":54,"n_cols":8,"rows_kept":54,"cut":false,"hidden":true,"merged":[[63,0,63,6],[62,0,62,6],[2,0,2,7],[5,0,8,7],[1,0,1,7]]}
[]
["Miete Geschirr"]
["Miete Geschirr"]
[]
[]
["Wir verrechnen keine Geschirrmiete, wenn Sie bei uns einen Anlass buchen. Im Preis inbegriffen ist das Abwaschen und Reinigen der gemieteten Gegen-stände. Bei Zulieferung gelten die üblichen Lieferkosten gemäss AGB. Fehlendes oder beschädigtes Material wird verrechnet gemäss Ersatzkostenreglement in den AGB."]
[]
[]
[]
[]
[null,null,"Geschirr",null,"Preis",null,"Einheit","Betrag inkl.  MwSt"]
[]
[null,null,"Teller, 28cm",null,2,"/","Stk.",{"$f":"A13*E13","v":0}]
[null,null,"Teller, 24cm",null,2,"/","Stk.",{"$f":"A14*E14","v":0}]
[null,null,"Teller, 18cm",null,1.5,"/","Stk.",0]
[null,null,"Salat-Teller klein",null,1,"/","Stk.",0]
[null,null,"Suppenschale",null,1,"/","Stk.",0]
[null,null,"Kaffeetasse mit Unterteller",null,2,"/","Stk.",0]
[null,null,"Espressotasse mit Unterteller",null,2,"/","Stk.",0]
[]
[null,null,"Besteck"]
[]
[null,null,"Messer",null,1,"/","Person",{"$f":"A23*E23","v":0}]
[null,null,"Gabel",null,1,"/","Person",0]
[null,null,"Suppenlöffel",null,1,"/","Person",0]
[null,null,"Kaffeelöffel",null,1,"/","Person",0]
[null,null,"Schöpfkelle",null,2,"/","Person",0]
[null,null,"Zange",null,2,"/","Person",0]
[]
[null,null,"Gläser"]
[]
[null,null,"Champagnerglas",null,1,"/","Stk.",{"$f":"A32*E32","v":0}]
[null,null,"Rotweinglas",null,1,"/","Stk.",0]
[null,null,"Weissweinglas",null,1,"/","Stk.",0]
[null,null,"Wasserglas, 2.5dl",null,1,"/","Stk.",0]
[]
[null,null,"Zubehör"]
[]
[null,null,"Korkenzieher",null,15,"/","Stk.",{"$f":"A39*E39","v":0}]
[null,null,"Grosses Messer",null,25,"/","Stk.",0]
[null,null,"Schale",null,12,"/","Stk.",0]
[null,null,"Platte",null,14.5,"/","Stk.",0]
[null,null,"Korb",null,8,"/","Stk.",0]
[null,null,"Thermoskanne",null,15,"/","Stk.",0]
[null,null,"Tischtuch Stoff, weiss, 1.4 x 1.9 m",null,5,"/","Stk.",0]
[null,null,"Stoff-Serviette, weiss, 50 x 50 cm",null,2.5,"/","Stk."]
[null,null,"Papier-Serviette, weiss, 33 x 33 cm",null,0.2,"/","Stk."]
[null,null,"Papier-Serviette, farbig, 40 x 40 cm",null,0.45,"/","Stk."]
[]
[null,null,"Take-Away"]
[]
[null,null,"Besteckset",null,0.3,"/","Stk.",{"$f":"A52*E52","v":0}]
[null,null,"Pappteller",null,1.2,"/","Stk.",0]
[null,null,"Becher",null,0.9,"/","Stk.",0]

{"sheet":"VIP-Lunch","index":7,"n_rows":44,"n_cols":5,"rows_kept":44,"cut":false,"hidden":false,"merged":[[44,3,44,7],[33,3,33,7],[35,3,35,7],[42,3,42,7],[43,3,43,7],[36,3,36,7],[37,3,37,7],[38,3,38,7],[39,3,39,7],[0,0,0,7],[1,0,1,7],[11,2,11,7],[16,2,16,7],[26,3,26,7],[21,3,21,7],[22,3,22,7],[23,3,23,7],[24,3,24,7],[29,3,29,7],[30,3,30,7],[31,3,31,7],[32,3,32,7],[25,3,25,7]]}
[]
["VIP Lunch"]
[]
[null,null,"Wir bieten bediente VIP-Lunches ab 4 Personen an. Gerne stellen wir Ihnen ein individuelles"]
[null,null,"Angebot zusammen, ausgerichtet auf Ihren speziellen Anlass, und auch mit Augenmerk auf"]
[null,null,"saisonale Produkte."]
[]
[null,null,"Bitte füllen Sie die nachfolgenden Angaben zu Ihrer Veranstaltung aus, damit wir Ihnen"]
[null,null,"eine massgeschneiderte Offerte zustellen können."]
[]
[null,null,"Eldora AG"]
[null,null,"Hard Rück Café"]
[null,null,"New Reinsurance Company Ltd."]
[null,null,"Zollikerstrasse 226"]
[null,null,"8008 Zürich"]
[]
[null,null,"Betriebsleiter: Michael Graf"]
[null,null,"T +41 44 811 00 31"]
[null,null,"9427-grt@eldora.ch"]
[]
[]
[null,null,"Vorname"]
[null,null,"Nachname"]
[null,null,"Strasse"]
[null,null,"Postleitzahl / Stadt"]
[null,null,"Kostenstelle"]
[null,null,"Telefonnummer"]
[null,null,"E-Mail"]
[]
[null,null,"Veranstaltungs-Raum"]
[null,null,"Name der Veranstaltung"]
[null,null,"Anzahl Personen"]
[null,null,"Datum/Zeit Veranstaltung"]
[null,null,"Ende der Veranstaltung"]
[]
[null,null,"Anzahl Gänge","     Vorspeise"]
[null,null,"gewünschtes bitte","     Salat"]
[null,null,"ankreuzen","     Suppe"]
[null,null,null,"     Hauptgang"]
[null,null,null,"     Dessert"]
[null,null,"Vegetarische Optionen","     Ja, unbedingt!   ","         Nicht zwingend"]
[]
[null,null,"Weitere Wünsche"]
[null,null,"und Bemerkungen"]

{"sheet":"AGB","index":8,"n_rows":2,"n_cols":1,"rows_kept":2,"cut":false,"hidden":false,"merged":[[0,0,0,7],[1,0,1,7],[64,0,64,7],[65,0,65,7],[107,0,107,5]]}
[]
["Allgemeine Geschäftsbedingungen"]

{"sheet":"Anzeige","index":9,"n_rows":389,"n_cols":6,"rows_kept":389,"cut":false,"hidden":true,"merged":[]}
["Kategorie","Artikel","Anzahl","Stückpreis","Total","anzeige"]
[{"$f":"Coffeebreak!$A$2","v":"Coffeebreak"},{"$f":"Coffeebreak!C5","v":0},{"$f":"IFERROR(INDEX(Coffeebreak!$A$6:$A$87,MATCH(Anzeige!B2,Coffeebreak!$C$6:$C$87,0)),0)","v":0},{"$f":"Coffeebreak!E5","v":0},{"$f":"IFERROR(D2*C2,0)","v":0},{"$f":"IF(C2=0,\"\",\"x\")","v":""}]
[{"$f":"Coffeebreak!$A$2","v":"Coffeebreak"},{"$f":"Coffeebreak!C6","v":"Buttergipfel"},{"$f":"IFERROR(INDEX(Coffeebreak!$A$6:$A$87,MATCH(Anzeige!B3,Coffeebreak!$C$6:$C$87,0)),0)","v":0},{"$f":"Coffeebreak!E6","v":1.4},{"$f":"IFERROR(D3*C3,0)","v":0},""]
[{"$f":"Coffeebreak!$A$2","v":"Coffeebreak"},{"$f":"Coffeebreak!C7","v":"Laugengipfel"},{"$f":"IFERROR(INDEX(Coffeebreak!$A$6:$A$87,MATCH(Anzeige!B4,Coffeebreak!$C$6:$C$87,0)),0)","v":0},{"$f":"Coffeebreak!E7","v":1.4},0,""]
[{"$f":"Coffeebreak!$A$2","v":"Coffeebreak"},{"$f":"Coffeebreak!C8","v":"Rusticogipfel"},{"$f":"IFERROR(INDEX(Coffeebreak!$A$6:$A$87,MATCH(Anzeige!B5,Coffeebreak!$C$6:$C$87,0)),0)","v":0},{"$f":"Coffeebreak!E8","v":1.4},0,""]
[{"$f":"Coffeebreak!$A$2","v":"Coffeebreak"},{"$f":"Coffeebreak!C9","v":"Cailler Schoggigipfel"},{"$f":"IFERROR(INDEX(Coffeebreak!$A$6:$A$87,MATCH(Anzeige!B6,Coffeebreak!$C$6:$C$87,0)),0)","v":0},{"$f":"Coffeebreak!E9","v":2.6},0,""]
[{"$f":"Coffeebreak!$A$2","v":"Coffeebreak"},{"$f":"Coffeebreak!C10","v":"Ovo Crunchy Roll"},{"$f":"IFERROR(INDEX(Coffeebreak!$A$6:$A$87,MATCH(Anzeige!B7,Coffeebreak!$C$6:$C$87,0)),0)","v":0},{"$f":"Coffeebreak!E10","v":2.6},0,""]
[{"$f":"Coffeebreak!$A$2","v":"Coffeebreak"},{"$f":"Coffeebreak!C11","v":"Diverse Brötli  assortiert"},{"$f":"IFERROR(INDEX(Coffeebreak!$A$6:$A$87,MATCH(Anzeige!B8,Coffeebreak!$C$6:$C$87,0)),0)","v":0},{"$f":"Coffeebreak!E11","v":1.5},0,""]
[{"$f":"Coffeebreak!$A$2","v":"Coffeebreak"},{"$f":"Coffeebreak!C12","v":0},{"$f":"IFERROR(INDEX(Coffeebreak!$A$6:$A$87,MATCH(Anzeige!B9,Coffeebreak!$C$6:$C$87,0)),0)","v":0},{"$f":"Coffeebreak!E12","v":0},0,""]
[{"$f":"Coffeebreak!$A$2","v":"Coffeebreak"},{"$f":"Coffeebreak!C13","v":"EXTRAS"},{"$f":"IFERROR(INDEX(Coffeebreak!$A$6:$A$87,MATCH(Anzeige!B10,Coffeebreak!$C$6:$C$87,0)),0)","v":0},{"$f":"Coffeebreak!E13","v":0},0,""]
[{"$f":"Coffeebreak!$A$2","v":"Coffeebreak"},{"$f":"Coffeebreak!C14","v":0},{"$f":"IFERROR(INDEX(Coffeebreak!$A$6:$A$87,MATCH(Anzeige!B11,Coffeebreak!$C$6:$C$87,0)),0)","v":0},{"$f":"Coffeebreak!E14","v":0},0,""]
[{"$f":"Coffeebreak!$A$2","v":"Coffeebreak"},{"$f":"Coffeebreak!C15","v":"Butter Portion"},{"$f":"IFERROR(INDEX(Coffeebreak!$A$6:$A$87,MATCH(Anzeige!B12,Coffeebreak!$C$6:$C$87,0)),0)","v":0},{"$f":"Coffeebreak!E15","v":0.8},0,""]
[{"$f":"Coffeebreak!$A$2","v":"Coffeebreak"},{"$f":"Coffeebreak!C16","v":"Konfitüre Portion"},{"$f":"IFERROR(INDEX(Coffeebreak!$A$6:$A$87,MATCH(Anzeige!B13,Coffeebreak!$C$6:$C$87,0)),0)","v":0},{"$f":"Coffeebreak!E16","v":0.8},0,""]
[{"$f":"Coffeebreak!$A$2","v":"Coffeebreak"},{"$f":"Coffeebreak!C17","v":"Honig Portion"},{"$f":"IFERROR(INDEX(Coffeebreak!$A$6:$A$87,MATCH(Anzeige!B14,Coffeebreak!$C$6:$C$87,0)),0)","v":0},{"$f":"Coffeebreak!E17","v":0.8},0,""]
[{"$f":"Coffeebreak!$A$2","v":"Coffeebreak"},{"$f":"Coffeebreak!C18","v":0},{"$f":"IFERROR(INDEX(Coffeebreak!$A$6:$A$87,MATCH(Anzeige!B15,Coffeebreak!$C$6:$C$87,0)),0)","v":0},{"$f":"Coffeebreak!E18","v":0},0,""]
[{"$f":"Coffeebreak!$A$2","v":"Coffeebreak"},{"$f":"Coffeebreak!C19","v":"BREAKFAST PLUS"},{"$f":"IFERROR(INDEX(Coffeebreak!$A$6:$A$87,MATCH(Anzeige!B16,Coffeebreak!$C$6:$C$87,0)),0)","v":0},{"$f":"Coffeebreak!E19","v":0},0,""]
[{"$f":"Coffeebreak!$A$2","v":"Coffeebreak"},{"$f":"Coffeebreak!C20","v":0},{"$f":"IFERROR(INDEX(Coffeebreak!$A$6:$A$87,MATCH(Anzeige!B17,Coffeebreak!$C$6:$C$87,0)),0)","v":0},{"$f":"Coffeebreak!E20","v":0},0,""]
[{"$f":"Coffeebreak!$A$2","v":"Coffeebreak"},{"$f":"Coffeebreak!C21","v":"Swiss Classic Birchermüesli im Glas"},{"$f":"IFERROR(INDEX(Coffeebreak!$A$6:$A$87,MATCH(Anzeige!B18,Coffeebreak!$C$6:$C$87,0)),0)","v":0},{"$f":"Coffeebreak!E21","v":3.5},0,""]
[{"$f":"Coffeebreak!$A$2","v":"Coffeebreak"},{"$f":"Coffeebreak!C22","v":"Joghurt laktosefrei diverse Sorten im Becher"},{"$f":"IFERROR(INDEX(Coffeebreak!$A$6:$A$87,MATCH(Anzeige!B19,Coffeebreak!$C$6:$C$87,0)),0)","v":0},{"$f":"Coffeebreak!E22","v":1.5},0,""]
[{"$f":"Coffeebreak!$A$2","v":"Coffeebreak"},{"$f":"Coffeebreak!C23","v":"Frisch gepresster Orangensaft"},{"$f":"IFERROR(INDEX(Coffeebreak!$A$6:$A$87,MATCH(Anzeige!B20,Coffeebreak!$C$6:$C$87,0)),0)","v":0},{"$f":"Coffeebreak!E23","v":4.5},0,""]
[{"$f":"Coffeebreak!$A$2","v":"Coffeebreak"},{"$f":"Coffeebreak!C24","v":"Saisonaler Smoothie"},{"$f":"IFERROR(INDEX(Coffeebreak!$A$6:$A$87,MATCH(Anzeige!B21,Coffeebreak!$C$6:$C$87,0)),0)","v":0},{"$f":"Coffeebreak!E24","v":4.5},0,""]
[{"$f":"Coffeebreak!$A$2","v":"Coffeebreak"},{"$f":"Coffeebreak!C25","v":"z.B Erdbeer, Kiwi, Mango, Waldbeeren "},{"$f":"IFERROR(INDEX(Coffeebreak!$A$6:$A$87,MATCH(Anzeige!B22,Coffeebreak!$C$6:$C$87,0)),0)","v":0},{"$f":"Coffeebreak!E25","v":0},0,""]
[{"$f":"Coffeebreak!$A$2","v":"Coffeebreak"},{"$f":"Coffeebreak!C26","v":"FRUITS"},{"$f":"IFERROR(INDEX(Coffeebreak!$A$6:$A$87,MATCH(Anzeige!B23,Coffeebreak!$C$6:$C$87,0)),0)","v":0},{"$f":"Coffeebreak!E26","v":0},0,""]
[{"$f":"Coffeebreak!$A$2","v":"Coffeebreak"},{"$f":"Coffeebreak!C27","v":0},{"$f":"IFERROR(INDEX(Coffeebreak!$A$6:$A$87,MATCH(Anzeige!B24,Coffeebreak!$C$6:$C$87,0)),0)","v":0},{"$f":"Coffeebreak!E27","v":0},0,""]
[{"$f":"Coffeebreak!$A$2","v":"Coffeebreak"},{"$f":"Coffeebreak!C28","v":"Fruchtsalat im Glas"},{"$f":"IFERROR(INDEX(Coffeebreak!$A$6:$A$87,MATCH(Anzeige!B25,Coffeebreak!$C$6:$C$87,0)),0)","v":0},{"$f":"Coffeebreak!E28","v":3.5},0,""]
[{"$f":"Coffeebreak!$A$2","v":"Coffeebreak"},{"$f":"Coffeebreak!C29","v":"Früchtekorb für 1-8 Personen"},{"$f":"IFERROR(INDEX(Coffeebreak!$A$6:$A$87,MATCH(Anzeige!B26,Coffeebreak!$C$6:$C$87,0)),0)","v":0},{"$f":"Coffeebreak!E29","v":12},0,""]
[{"$f":"Coffeebreak!$A$2","v":"Coffeebreak"},{"$f":"Coffeebreak!C30","v":"Früchtekorb für 9-15 Personen"},{"$f":"IFERROR(INDEX(Coffeebreak!$A$6:$A$87,MATCH(Anzeige!B27,Coffeebreak!$C$6:$C$87,0)),0)","v":0},{"$f":"Coffeebreak!E30","v":21},0,""]
[{"$f":"Coffeebreak!$A$2","v":"Coffeebreak"},{"$f":"Coffeebreak!C31","v":0},{"$f":"IFERROR(INDEX(Coffeebreak!$A$6:$A$87,MATCH(Anzeige!B28,Coffeebreak!$C$6:$C$87,0)),0)","v":0},{"$f":"Coffeebreak!E31","v":0},0,""]
[{"$f":"Coffeebreak!$A$2","v":"Coffeebreak"},{"$f":"Coffeebreak!C32","v":0},{"$f":"IFERROR(INDEX(Coffeebreak!$A$6:$A$87,MATCH(Anzeige!B29,Coffeebreak!$C$6:$C$87,0)),0)","v":0},{"$f":"Coffeebreak!E32","v":0},0,""]
[{"$f":"Coffeebreak!$A$2","v":"Coffeebreak"},{"$f":"Coffeebreak!C33","v":0},{"$f":"IFERROR(INDEX(Coffeebreak!$A$6:$A$87,MATCH(Anzeige!B30,Coffeebreak!$C$6:$C$87,0)),0)","v":0},{"$f":"Coffeebreak!E33","v":0},0,""]
[{"$f":"Coffeebreak!$A$2","v":"Coffeebreak"},{"$f":"Coffeebreak!C34","v":0},{"$f":"IFERROR(INDEX(Coffeebreak!$A$6:$A$87,MATCH(Anzeige!B31,Coffeebreak!$C$6:$C$87,0)),0)","v":0},{"$f":"Coffeebreak!E34","v":0},0,""]
[{"$f":"Coffeebreak!$A$2","v":"Coffeebreak"},{"$f":"Coffeebreak!C35","v":"SWEET BAKERY"},{"$f":"IFERROR(INDEX(Coffeebreak!$A$6:$A$87,MATCH(Anzeige!B32,Coffeebreak!$C$6:$C$87,0)),0)","v":0},{"$f":"Coffeebreak!E35","v":"Preis"},0,""]
[{"$f":"Coffeebreak!$A$2","v":"Coffeebreak"},{"$f":"Coffeebreak!C36","v":0},{"$f":"IFERROR(INDEX(Coffeebreak!$A$6:$A$87,MATCH(Anzeige!B33,Coffeebreak!$C$6:$C$87,0)),0)","v":0},{"$f":"Coffeebreak!E36","v":0},0,""]
[{"$f":"Coffeebreak!$A$2","v":"Coffeebreak"},{"$f":"Coffeebreak!C37","v":"Nuss- / Mandelgipfel"},{"$f":"IFERROR(INDEX(Coffeebreak!$A$6:$A$87,MATCH(Anzeige!B34,Coffeebreak!$C$6:$C$87,0)),0)","v":0},{"$f":"Coffeebreak!E37","v":2.9},0,""]
[{"$f":"Coffeebreak!$A$2","v":"Coffeebreak"},{"$f":"Coffeebreak!C38","v":"Vanillecrèmegipfel"},{"$f":"IFERROR(INDEX(Coffeebreak!$A$6:$A$87,MATCH(Anzeige!B35,Coffeebreak!$C$6:$C$87,0)),0)","v":0},{"$f":"Coffeebreak!E38","v":2.9},0,""]
[{"$f":"Coffeebreak!$A$2","v":"Coffeebreak"},{"$f":"Coffeebreak!C39","v":"Brownie"},{"$f":"IFERROR(INDEX(Coffeebreak!$A$6:$A$87,MATCH(Anzeige!B36,Coffeebreak!$C$6:$C$87,0)),0)","v":0},{"$f":"Coffeebreak!E39","v":3},0,""]
[{"$f":"Coffeebreak!$A$2","v":"Coffeebreak"},{"$f":"Coffeebreak!C40","v":"Trockengebäck   assortiert"},{"$f":"IFERROR(INDEX(Coffeebreak!$A$6:$A$87,MATCH(Anzeige!B37,Coffeebreak!$C$6:$C$87,0)),0)","v":0},{"$f":"Coffeebreak!E40","v":2},0,""]
[{"$f":"Coffeebreak!$A$2","v":"Coffeebreak"},{"$f":"Coffeebreak!C41","v":"Mini-Patisserie    assortiert"},{"$f":"IFERROR(INDEX(Coffeebreak!$A$6:$A$87,MATCH(Anzeige!B38,Coffeebreak!$C$6:$C$87,0)),0)","v":0},{"$f":"Coffeebreak!E41","v":2},0,""]
[{"$f":"Coffeebreak!$A$2","v":"Coffeebreak"},{"$f":"Coffeebreak!C42","v":"Muffins Schoggi, Blueberry, Zitrone-Kokos"},{"$f":"IFERROR(INDEX(Coffeebreak!$A$6:$A$87,MATCH(Anzeige!B39,Coffeebreak!$C$6:$C$87,0)),0)","v":0},{"$f":"Coffeebreak!E42","v":2.9},0,""]
[{"$f":"Coffeebreak!$A$2","v":"Coffeebreak"},{"$f":"Coffeebreak!C43","v":"Mini Cake Schoggi, Marmor, Zitonen, Rüebli"},{"$f":"IFERROR(INDEX(Coffeebreak!$A$6:$A$87,MATCH(Anzeige!B40,Coffeebreak!$C$6:$C$87,0)),0)","v":0},{"$f":"Coffeebreak!E43","v":2.9},0,""]
[{"$f":"Coffeebreak!$A$2","v":"Coffeebreak"},{"$f":"Coffeebreak!C44","v":"Streuselkuchen Zwetschge, Aprikose, Kirsche"},{"$f":"IFERROR(INDEX(Coffeebreak!$A$6:$A$87,MATCH(Anzeige!B41,Coffeebreak!$C$6:$C$87,0)),0)","v":0},{"$f":"Coffeebreak!E44","v":3.5},0,""]
[{"$f":"Coffeebreak!$A$2","v":"Coffeebreak"},{"$f":"Coffeebreak!C45","v":0},{"$f":"IFERROR(INDEX(Coffeebreak!$A$6:$A$87,MATCH(Anzeige!B42,Coffeebreak!$C$6:$C$87,0)),0)","v":0},{"$f":"Coffeebreak!E45","v":0},0,""]
[{"$f":"Coffeebreak!$A$2","v":"Coffeebreak"},{"$f":"Coffeebreak!C46","v":"MINI SANDICHES      Mindestbestellmenge: 5 Stück"},{"$f":"IFERROR(INDEX(Coffeebreak!$A$6:$A$87,MATCH(Anzeige!B43,Coffeebreak!$C$6:$C$87,0)),0)","v":0},{"$f":"Coffeebreak!E46","v":0},0,""]
[{"$f":"Coffeebreak!$A$2","v":"Coffeebreak"},{"$f":"Coffeebreak!C47","v":0},{"$f":"IFERROR(INDEX(Coffeebreak!$A$6:$A$87,MATCH(Anzeige!B44,Coffeebreak!$C$6:$C$87,0)),0)","v":0},{"$f":"Coffeebreak!E47","v":0},0,""]
[{"$f":"Coffeebreak!$A$2","v":"Coffeebreak"},{"$f":"Coffeebreak!C48","v":"In 5 versch. Brötli (assortiert: Nature, Mehrkorn, Tomate, Oliven, Feta-Peperoni, Walnuss-Haselnuss)"},{"$f":"IFERROR(INDEX(Coffeebreak!$A$6:$A$87,MATCH(Anzeige!B45,Coffeebreak!$C$6:$C$87,0)),0)","v":0},{"$f":"Coffeebreak!E48","v":0},0,""]
[{"$f":"Coffeebreak!$A$2","v":"Coffeebreak"},{"$f":"Coffeebreak!C49","v":"Brie & Birnen"},{"$f":"IFERROR(INDEX(Coffeebreak!$A$6:$A$87,MATCH(Anzeige!B46,Coffeebreak!$C$6:$C$87,0)),0)","v":0},{"$f":"Coffeebreak!E49","v":3.5},0,""]
[{"$f":"Coffeebreak!$A$2","v":"Coffeebreak"},{"$f":"Coffeebreak!C50","v":"Ei & Kresse"},{"$f":"IFERROR(INDEX(Coffeebreak!$A$6:$A$87,MATCH(Anzeige!B47,Coffeebreak!$C$6:$C$87,0)),0)","v":0},{"$f":"Coffeebreak!E50","v":3.5},0,""]
[{"$f":"Coffeebreak!$A$2","v":"Coffeebreak"},{"$f":"Coffeebreak!C51","v":"Sternenberger Käse"},{"$f":"IFERROR(INDEX(Coffeebreak!$A$6:$A$87,MATCH(Anzeige!B48,Coffeebreak!$C$6:$C$87,0)),0)","v":0},{"$f":"Coffeebreak!E51","v":3.5},0,""]
[{"$f":"Coffeebreak!$A$2","v":"Coffeebreak"},{"$f":"Coffeebreak!C52","v":"Salami"},{"$f":"IFERROR(INDEX(Coffeebreak!$A$6:$A$87,MATCH(Anzeige!B49,Coffeebreak!$C$6:$C$87,0)),0)","v":0},{"$f":"Coffeebreak!E52","v":3.5},0,""]
[{"$f":"Coffeebreak!$A$2","v":"Coffeebreak"},{"$f":"Coffeebreak!C53","v":"Gekochter Schinken"},{"$f":"IFERROR(INDEX(Coffeebreak!$A$6:$A$87,MATCH(Anzeige!B50,Coffeebreak!$C$6:$C$87,0)),0)","v":0},{"$f":"Coffeebreak!E53","v":3.5},0,""]
[{"$f":"Coffeebreak!$A$2","v":"Coffeebreak"},{"$f":"Coffeebreak!C54","v":"Rohschinken & Rucola"},{"$f":"IFERROR(INDEX(Coffeebreak!$A$6:$A$87,MATCH(Anzeige!B51,Coffeebreak!$C$6:$C$87,0)),0)","v":0},{"$f":"Coffeebreak!E54","v":3.5},0,""]
[{"$f":"Coffeebreak!$A$2","v":"Coffeebreak"},{"$f":"Coffeebreak!C55","v":"Mostbröckli"},{"$f":"IFERROR(INDEX(Coffeebreak!$A$6:$A$87,MATCH(Anzeige!B52,Coffeebreak!$C$6:$C$87,0)),0)","v":0},{"$f":"Coffeebreak!E55","v":3.5},0,""]
[{"$f":"Coffeebreak!$A$2","v":"Coffeebreak"},{"$f":"Coffeebreak!C56","v":"Lachs, Zwiebeln & Kapern"},{"$f":"IFERROR(INDEX(Coffeebreak!$A$6:$A$87,MATCH(Anzeige!B53,Coffeebreak!$C$6:$C$87,0)),0)","v":0},{"$f":"Coffeebreak!E56","v":3.5},0,""]
[{"$f":"Coffeebreak!$A$2","v":"Coffeebreak"},{"$f":"Coffeebreak!C57","v":"Thonmousse mit Mayonnaise"},{"$f":"IFERROR(INDEX(Coffeebreak!$A$6:$A$87,MATCH(Anzeige!B54,Coffeebreak!$C$6:$C$87,0)),0)","v":0},{"$f":"Coffeebreak!E57","v":3.5},0,""]
[{"$f":"Coffeebreak!$A$2","v":"Coffeebreak"},{"$f":"Coffeebreak!C58","v":0},{"$f":"IFERROR(INDEX(Coffeebreak!$A$6:$A$87,MATCH(Anzeige!B55,Coffeebreak!$C$6:$C$87,0)),0)","v":0},{"$f":"Coffeebreak!E58","v":0},0,""]
[{"$f":"Coffeebreak!$A$2","v":"Coffeebreak"},{"$f":"Coffeebreak!C59","v":0},{"$f":"IFERROR(INDEX(Coffeebreak!$A$6:$A$87,MATCH(Anzeige!B56,Coffeebreak!$C$6:$C$87,0)),0)","v":0},{"$f":"Coffeebreak!E59","v":0},0,""]
[{"$f":"Coffeebreak!$A$2","v":"Coffeebreak"},{"$f":"Coffeebreak!C61","v":0},{"$f":"IFERROR(INDEX(Coffeebreak!$A$6:$A$87,MATCH(Anzeige!B57,Coffeebreak!$C$6:$C$87,0)),0)","v":0},{"$f":"Coffeebreak!E60","v":"Preis"},0,""]
[{"$f":"Coffeebreak!$A$2","v":"Coffeebreak"},{"$f":"Coffeebreak!C62","v":"MORNING BREAK basic"},{"$f":"IFERROR(INDEX(Coffeebreak!$A$6:$A$87,MATCH(Anzeige!B58,Coffeebreak!$C$6:$C$87,0)),0)","v":0},{"$f":"Coffeebreak!E61","v":0},0,""]
[{"$f":"Coffeebreak!$A$2","v":"Coffeebreak"},{"$f":"Coffeebreak!C63","v":"ab 5 Personen"},{"$f":"IFERROR(INDEX(Coffeebreak!$A$6:$A$87,MATCH(Anzeige!B59,Coffeebreak!$C$6:$C$87,0)),0)","v":0},{"$f":"Coffeebreak!E62","v":10.5},0,""]
[{"$f":"Coffeebreak!$A$2","v":"Coffeebreak"},{"$f":"Coffeebreak!C64","v":"Auswahl von Buttergipfel, Laugengipfel, "},{"$f":"IFERROR(INDEX(Coffeebreak!$A$6:$A$87,MATCH(Anzeige!B60,Coffeebreak!$C$6:$C$87,0)),0)","v":0},{"$f":"Coffeebreak!E63","v":0},0,""]
[{"$f":"Coffeebreak!$A$2","v":"Coffeebreak"},{"$f":"Coffeebreak!C65","v":"Rusticogipfel, Kaffee, Tee, Mineralwasser"},{"$f":"IFERROR(INDEX(Coffeebreak!$A$6:$A$87,MATCH(Anzeige!B61,Coffeebreak!$C$6:$C$87,0)),0)","v":0},{"$f":"Coffeebreak!E64","v":0},0,""]
[{"$f":"Coffeebreak!$A$2","v":"Coffeebreak"},{"$f":"Coffeebreak!C66","v":0},{"$f":"IFERROR(INDEX(Coffeebreak!$A$6:$A$87,MATCH(Anzeige!B62,Coffeebreak!$C$6:$C$87,0)),0)","v":0},{"$f":"Coffeebreak!E65","v":0},0,""]
[{"$f":"Coffeebreak!$A$2","v":"Coffeebreak"},{"$f":"Coffeebreak!C67","v":"MORNING BREAK classic"},{"$f":"IFERROR(INDEX(Coffeebreak!$A$6:$A$87,MATCH(Anzeige!B63,Coffeebreak!$C$6:$C$87,0)),0)","v":0},{"$f":"Coffeebreak!E66","v":0},0,""]
[{"$f":"Coffeebreak!$A$2","v":"Coffeebreak"},{"$f":"Coffeebreak!C68","v":"ab 5 Personen"},{"$f":"IFERROR(INDEX(Coffeebreak!$A$6:$A$87,MATCH(Anzeige!B64,Coffeebreak!$C$6:$C$87,0)),0)","v":0},{"$f":"Coffeebreak!E67","v":13.5},0,""]
[{"$f":"Coffeebreak!$A$2","v":"Coffeebreak"},{"$f":"Coffeebreak!C69","v":"Auswahl von Buttergipfel, Laugengipfel, "},{"$f":"IFERROR(INDEX(Coffeebreak!$A$6:$A$87,MATCH(Anzeige!B65,Coffeebreak!$C$6:$C$87,0)),0)","v":0},{"$f":"Coffeebreak!E68","v":0},0,""]
[{"$f":"Coffeebreak!$A$2","v":"Coffeebreak"},{"$f":"Coffeebreak!C70","v":"Rusticogipfel, Kaffee, Tee, Mineralwasser"},{"$f":"IFERROR(INDEX(Coffeebreak!$A$6:$A$87,MATCH(Anzeige!B66,Coffeebreak!$C$6:$C$87,0)),0)","v":0},{"$f":"Coffeebreak!E69","v":0},0,{"$f":"IF(C66=0,\"\",\"x\")","v":""}]
[{"$f":"Coffeebreak!$A$2","v":"Coffeebreak"},{"$f":"Coffeebreak!C71","v":"Softgetränke, Orangensaft, Früchteschale"},{"$f":"IFERROR(INDEX(Coffeebreak!$A$6:$A$87,MATCH(Anzeige!B67,Coffeebreak!$C$6:$C$87,0)),0)","v":0},{"$f":"Coffeebreak!E70","v":0},{"$f":"IFERROR(D67*C67,0)","v":0},""]
[{"$f":"Coffeebreak!$A$2","v":"Coffeebreak"},{"$f":"Coffeebreak!C72","v":0},{"$f":"IFERROR(INDEX(Coffeebreak!$A$6:$A$87,MATCH(Anzeige!B68,Coffeebreak!$C$6:$C$87,0)),0)","v":0},{"$f":"Coffeebreak!E71","v":0},0,""]
[{"$f":"Coffeebreak!$A$2","v":"Coffeebreak"},{"$f":"Coffeebreak!C73","v":"MORNING BREAK sunrise"},{"$f":"IFERROR(INDEX(Coffeebreak!$A$6:$A$87,MATCH(Anzeige!B69,Coffeebreak!$C$6:$C$87,0)),0)","v":0},{"$f":"Coffeebreak!E72","v":0},0,""]
[{"$f":"Coffeebreak!$A$2","v":"Coffeebreak"},{"$f":"Coffeebreak!C74","v":"ab 20 Personen"},{"$f":"IFERROR(INDEX(Coffeebreak!$A$6:$A$87,MATCH(Anzeige!B70,Coffeebreak!$C$6:$C$87,0)),0)","v":0},{"$f":"Coffeebreak!E73","v":18.5},0,""]
[{"$f":"Coffeebreak!$A$2","v":"Coffeebreak"},{"$f":"Coffeebreak!C75","v":"Auswahl von Buttergipfel, Laugengipfel, "},{"$f":"IFERROR(INDEX(Coffeebreak!$A$6:$A$87,MATCH(Anzeige!B71,Coffeebreak!$C$6:$C$87,0)),0)","v":0},{"$f":"Coffeebreak!E74","v":0},0,""]
[{"$f":"Coffeebreak!$A$2","v":"Coffeebreak"},{"$f":"Coffeebreak!C76","v":"Rusticogipfel, Kaffee, Tee, Mineralwasser"},{"$f":"IFERROR(INDEX(Coffeebreak!$A$6:$A$87,MATCH(Anzeige!B72,Coffeebreak!$C$6:$C$87,0)),0)","v":0},{"$f":"Coffeebreak!E75","v":0},0,""]
[{"$f":"Coffeebreak!$A$2","v":"Coffeebreak"},{"$f":"Coffeebreak!C77","v":"Softgetränke, Orangensaft, Früchteschale"},{"$f":"IFERROR(INDEX(Coffeebreak!$A$6:$A$87,MATCH(Anzeige!B73,Coffeebreak!$C$6:$C$87,0)),0)","v":0},{"$f":"Coffeebreak!E76","v":0},0,""]
[{"$f":"Coffeebreak!$A$2","v":"Coffeebreak"},{"$f":"Coffeebreak!C78","v":"Kleinbrötli, Birchermüesli im Glas, kleiner Schinken-Käseteller"},{"$f":"IFERROR(INDEX(Coffeebreak!$A$6:$A$87,MATCH(Anzeige!B74,Coffeebreak!$C$6:$C$87,0)),0)","v":0},{"$f":"Coffeebreak!E77","v":0},0,""]
[{"$f":"Coffeebreak!$A$2","v":"Coffeebreak"},{"$f":"Coffeebreak!C79","v":0},{"$f":"IFERROR(INDEX(Coffeebreak!$A$6:$A$87,MATCH(Anzeige!B75,Coffeebreak!$C$6:$C$87,0)),0)","v":0},{"$f":"Coffeebreak!E78","v":0},0,""]
[{"$f":"Coffeebreak!$A$2","v":"Coffeebreak"},{"$f":"Coffeebreak!C80","v":"AFTERNOON BREAK light"},{"$f":"IFERROR(INDEX(Coffeebreak!$A$6:$A$87,MATCH(Anzeige!B76,Coffeebreak!$C$6:$C$87,0)),0)","v":0},{"$f":"Coffeebreak!E79","v":0},0,""]
[{"$f":"Coffeebreak!$A$2","v":"Coffeebreak"},{"$f":"Coffeebreak!C81","v":"ab 5 Personen"},{"$f":"IFERROR(INDEX(Coffeebreak!$A$6:$A$87,MATCH(Anzeige!B77,Coffeebreak!$C$6:$C$87,0)),0)","v":0},{"$f":"Coffeebreak!E80","v":9},0,""]
[{"$f":"Coffeebreak!$A$2","v":"Coffeebreak"},{"$f":"Coffeebreak!C82","v":"Kaffee, Tee, Mineralwasser, Softgetränke, Orangensaft"},{"$f":"IFERROR(INDEX(Coffeebreak!$A$6:$A$87,MATCH(Anzeige!B78,Coffeebreak!$C$6:$C$87,0)),0)","v":0},{"$f":"Coffeebreak!E81","v":0},0,""]
[{"$f":"Coffeebreak!$A$2","v":"Coffeebreak"},{"$f":"Coffeebreak!C83","v":0},{"$f":"IFERROR(INDEX(Coffeebreak!$A$6:$A$87,MATCH(Anzeige!B79,Coffeebreak!$C$6:$C$87,0)),0)","v":0},{"$f":"Coffeebreak!E82","v":0},0,""]
[{"$f":"Coffeebreak!$A$2","v":"Coffeebreak"},{"$f":"Coffeebreak!C84","v":"AFTERNOON BREAK sweet"},{"$f":"IFERROR(INDEX(Coffeebreak!$A$6:$A$87,MATCH(Anzeige!B80,Coffeebreak!$C$6:$C$87,0)),0)","v":0},{"$f":"Coffeebreak!E83","v":0},0,""]
[{"$f":"Coffeebreak!$A$2","v":"Coffeebreak"},{"$f":"Coffeebreak!C85","v":"ab 10 Personen"},{"$f":"IFERROR(INDEX(Coffeebreak!$A$6:$A$87,MATCH(Anzeige!B81,Coffeebreak!$C$6:$C$87,0)),0)","v":0},{"$f":"Coffeebreak!E84","v":13.5},0,""]
[{"$f":"Coffeebreak!$A$2","v":"Coffeebreak"},{"$f":"Coffeebreak!C86","v":"Kaffee, Tee, Mineralwasser, Softgetränke, Orangensaft, "},{"$f":"IFERROR(INDEX(Coffeebreak!$A$6:$A$87,MATCH(Anzeige!B82,Coffeebreak!$C$6:$C$87,0)),0)","v":0},{"$f":"Coffeebreak!E85","v":0},0,""]
[{"$f":"Coffeebreak!$A$2","v":"Coffeebreak"},{"$f":"Coffeebreak!C87","v":"Kaffeegebäck assortiert"},{"$f":"IFERROR(INDEX(Coffeebreak!$A$6:$A$87,MATCH(Anzeige!B83,Coffeebreak!$C$6:$C$87,0)),0)","v":0},{"$f":"Coffeebreak!E86","v":0},0,""]
[{"$f":"'Working Lunch'!$A$2","v":"Working Lunch"},{"$f":"'Working Lunch'!C7","v":"Parisette Laugen"},{"$f":"IFERROR(INDEX('Working Lunch'!$A$7:$A$50,MATCH(Anzeige!B84,'Working Lunch'!$C$7:$C$50,0)),0)","v":0},{"$f":"'Working Lunch'!E7","v":35},{"$f":"IFERROR(D84*C84,0)","v":0},""]
[{"$f":"'Working Lunch'!$A$2","v":"Working Lunch"},{"$f":"'Working Lunch'!C8","v":"Brie, Butter, Lollosalat, Gurken, Tomaten, Baumnüsse"},{"$f":"IFERROR(INDEX('Working Lunch'!$A$7:$A$50,MATCH(Anzeige!B85,'Working Lunch'!$C$7:$C$50,0)),0)","v":0},{"$f":"'Working Lunch'!E8","v":0},{"$f":"IFERROR(D85*C85,0)","v":0},""]
[{"$f":"'Working Lunch'!$A$2","v":"Working Lunch"},{"$f":"'Working Lunch'!C9","v":0},{"$f":"IFERROR(INDEX('Working Lunch'!$A$7:$A$50,MATCH(Anzeige!B86,'Working Lunch'!$C$7:$C$50,0)),0)","v":0},{"$f":"'Working Lunch'!E9","v":0},0,""]
[{"$f":"'Working Lunch'!$A$2","v":"Working Lunch"},{"$f":"'Working Lunch'!C10","v":"Parisette Laugen"},{"$f":"IFERROR(INDEX('Working Lunch'!$A$7:$A$50,MATCH(Anzeige!B87,'Working Lunch'!$C$7:$C$50,0)),0)","v":0},{"$f":"'Working Lunch'!E10","v":35},0,""]
[{"$f":"'Working Lunch'!$A$2","v":"Working Lunch"},{"$f":"'Working Lunch'!C11","v":"Bergkäse, Eier, Mayonnaise, Gurken, Kresse"},{"$f":"IFERROR(INDEX('Working Lunch'!$A$7:$A$50,MATCH(Anzeige!B88,'Working Lunch'!$C$7:$C$50,0)),0)","v":0},{"$f":"'Working Lunch'!E11","v":0},0,""]
[{"$f":"'Working Lunch'!$A$2","v":"Working Lunch"},{"$f":"'Working Lunch'!C12","v":0},{"$f":"IFERROR(INDEX('Working Lunch'!$A$7:$A$50,MATCH(Anzeige!B89,'Working Lunch'!$C$7:$C$50,0)),0)","v":0},{"$f":"'Working Lunch'!E12","v":0},0,""]
[{"$f":"'Working Lunch'!$A$2","v":"Working Lunch"},{"$f":"'Working Lunch'!C13","v":"Parisette hell"},{"$f":"IFERROR(INDEX('Working Lunch'!$A$7:$A$50,MATCH(Anzeige!B90,'Working Lunch'!$C$7:$C$50,0)),0)","v":0},{"$f":"'Working Lunch'!E13","v":35},0,""]
[{"$f":"'Working Lunch'!$A$2","v":"Working Lunch"},{"$f":"'Working Lunch'!C14","v":"Tomate, Mozzarella, Basilikum, Pesto und Rucola"},{"$f":"IFERROR(INDEX('Working Lunch'!$A$7:$A$50,MATCH(Anzeige!B91,'Working Lunch'!$C$7:$C$50,0)),0)","v":0},{"$f":"'Working Lunch'!E14","v":0},0,""]
[{"$f":"'Working Lunch'!$A$2","v":"Working Lunch"},{"$f":"'Working Lunch'!C15","v":0},{"$f":"IFERROR(INDEX('Working Lunch'!$A$7:$A$50,MATCH(Anzeige!B92,'Working Lunch'!$C$7:$C$50,0)),0)","v":0},{"$f":"'Working Lunch'!E15","v":0},0,""]
[{"$f":"'Working Lunch'!$A$2","v":"Working Lunch"},{"$f":"'Working Lunch'!C16","v":"Parisette hell"},{"$f":"IFERROR(INDEX('Working Lunch'!$A$7:$A$50,MATCH(Anzeige!B93,'Working Lunch'!$C$7:$C$50,0)),0)","v":0},{"$f":"'Working Lunch'!E16","v":35},0,""]
[{"$f":"'Working Lunch'!$A$2","v":"Working Lunch"},{"$f":"'Working Lunch'!C17","v":"Trutenbrust, Ei, Tartarsauce, Cornichons, Tomate, Lollosalat"},{"$f":"IFERROR(INDEX('Working Lunch'!$A$7:$A$50,MATCH(Anzeige!B94,'Working Lunch'!$C$7:$C$50,0)),0)","v":0},{"$f":"'Working Lunch'!E17","v":0},0,""]
[{"$f":"'Working Lunch'!$A$2","v":"Working Lunch"},{"$f":"'Working Lunch'!C18","v":0},{"$f":"IFERROR(INDEX('Working Lunch'!$A$7:$A$50,MATCH(Anzeige!B95,'Working Lunch'!$C$7:$C$50,0)),0)","v":0},{"$f":"'Working Lunch'!E18","v":0},0,""]
[{"$f":"'Working Lunch'!$A$2","v":"Working Lunch"},{"$f":"'Working Lunch'!C19","v":"Parisette dunkel"},{"$f":"IFERROR(INDEX('Working Lunch'!$A$7:$A$50,MATCH(Anzeige!B96,'Working Lunch'!$C$7:$C$50,0)),0)","v":0},{"$f":"'Working Lunch'!E19","v":40},0,""]
[{"$f":"'Working Lunch'!$A$2","v":"Working Lunch"},{"$f":"'Working Lunch'!C20","v":"Rauchlachs, Cantadou, Kopfsalat, Kapern, Zwiebeln, Meerrettich "},{"$f":"IFERROR(INDEX('Working Lunch'!$A$7:$A$50,MATCH(Anzeige!B97,'Working Lunch'!$C$7:$C$50,0)),0)","v":0},{"$f":"'Working Lunch'!E20","v":0},0,""]
[{"$f":"'Working Lunch'!$A$2","v":"Working Lunch"},{"$f":"'Working Lunch'!C21","v":0},{"$f":"IFERROR(INDEX('Working Lunch'!$A$7:$A$50,MATCH(Anzeige!B98,'Working Lunch'!$C$7:$C$50,0)),0)","v":0},{"$f":"'Working Lunch'!E21","v":0},0,""]
[{"$f":"'Working Lunch'!$A$2","v":"Working Lunch"},{"$f":"'Working Lunch'!C22","v":"Parisette dunkel"},{"$f":"IFERROR(INDEX('Working Lunch'!$A$7:$A$50,MATCH(Anzeige!B99,'Working Lunch'!$C$7:$C$50,0)),0)","v":0},{"$f":"'Working Lunch'!E22","v":40},0,""]
[{"$f":"'Working Lunch'!$A$2","v":"Working Lunch"},{"$f":"'Working Lunch'!C23","v":"Roastbeef, Coleslaw, Tomate, Senfbutter, Eisbergsalat"},{"$f":"IFERROR(INDEX('Working Lunch'!$A$7:$A$50,MATCH(Anzeige!B100,'Working Lunch'!$C$7:$C$50,0)),0)","v":0},{"$f":"'Working Lunch'!E23","v":0},0,""]
[{"$f":"'Working Lunch'!$A$2","v":"Working Lunch"},{"$f":"'Working Lunch'!C24","v":0},{"$f":"IFERROR(INDEX('Working Lunch'!$A$7:$A$50,MATCH(Anzeige!B101,'Working Lunch'!$C$7:$C$50,0)),0)","v":0},{"$f":"'Working Lunch'!E24","v":0},0,""]
[{"$f":"'Working Lunch'!$A$2","v":"Working Lunch"},{"$f":"'Working Lunch'!C25","v":0},{"$f":"IFERROR(INDEX('Working Lunch'!$A$7:$A$50,MATCH(Anzeige!B102,'Working Lunch'!$C$7:$C$50,0)),0)","v":0},{"$f":"'Working Lunch'!E25","v":0},0,""]
[{"$f":"'Working Lunch'!$A$2","v":"Working Lunch"},{"$f":"'Working Lunch'!C26","v":0},{"$f":"IFERROR(INDEX('Working Lunch'!$A$7:$A$50,MATCH(Anzeige!B103,'Working Lunch'!$C$7:$C$50,0)),0)","v":0},{"$f":"'Working Lunch'!E26","v":0},0,""]
[{"$f":"'Working Lunch'!$A$2","v":"Working Lunch"},{"$f":"'Working Lunch'!C27","v":0},{"$f":"IFERROR(INDEX('Working Lunch'!$A$7:$A$50,MATCH(Anzeige!B104,'Working Lunch'!$C$7:$C$50,0)),0)","v":0},{"$f":"'Working Lunch'!E27","v":0},0,""]
[{"$f":"'Working Lunch'!$A$2","v":"Working Lunch"},{"$f":"'Working Lunch'!C28","v":0},{"$f":"IFERROR(INDEX('Working Lunch'!$A$7:$A$50,MATCH(Anzeige!B105,'Working Lunch'!$C$7:$C$50,0)),0)","v":0},{"$f":"'Working Lunch'!E28","v":"Preis"},0,""]
[{"$f":"'Working Lunch'!$A$2","v":"Working Lunch"},{"$f":"'Working Lunch'!C29","v":"LUNCH PACKAGE Sandwich"},{"$f":"IFERROR(INDEX('Working Lunch'!$A$7:$A$50,MATCH(Anzeige!B106,'Working Lunch'!$C$7:$C$50,0)),0)","v":0},{"$f":"'Working Lunch'!E29","v":19.5},0,""]
[{"$f":"'Working Lunch'!$A$2","v":"Working Lunch"},{"$f":"'Working Lunch'!C30","v":"Ab 10 Personen"},{"$f":"IFERROR(INDEX('Working Lunch'!$A$7:$A$50,MATCH(Anzeige!B107,'Working Lunch'!$C$7:$C$50,0)),0)","v":0},{"$f":"'Working Lunch'!E30","v":0},0,""]
[{"$f":"'Working Lunch'!$A$2","v":"Working Lunch"},{"$f":"'Working Lunch'!C31","v":"Assortierte Sandwich-Platte mit 3 Sandwiches pro Person"},{"$f":"IFERROR(INDEX('Working Lunch'!$A$7:$A$50,MATCH(Anzeige!B108,'Working Lunch'!$C$7:$C$50,0)),0)","v":0},{"$f":"'Working Lunch'!E31","v":0},0,""]
[{"$f":"'Working Lunch'!$A$2","v":"Working Lunch"},{"$f":"'Working Lunch'!C32","v":"1 Softdrink 0.5l nach Wahl"},{"$f":"IFERROR(INDEX('Working Lunch'!$A$7:$A$50,MATCH(Anzeige!B109,'Working Lunch'!$C$7:$C$50,0)),0)","v":0},{"$f":"'Working Lunch'!E32","v":0},0,""]
[{"$f":"'Working Lunch'!$A$2","v":"Working Lunch"},{"$f":"'Working Lunch'!C33","v":0},{"$f":"IFERROR(INDEX('Working Lunch'!$A$7:$A$50,MATCH(Anzeige!B110,'Working Lunch'!$C$7:$C$50,0)),0)","v":0},{"$f":"'Working Lunch'!E33","v":0},0,""]
[{"$f":"'Working Lunch'!$A$2","v":"Working Lunch"},{"$f":"'Working Lunch'!C34","v":"LUNCH PACKAGE Platte"},{"$f":"IFERROR(INDEX('Working Lunch'!$A$7:$A$50,MATCH(Anzeige!B111,'Working Lunch'!$C$7:$C$50,0)),0)","v":0},{"$f":"'Working Lunch'!E34","v":19.5},0,""]
[{"$f":"'Working Lunch'!$A$2","v":"Working Lunch"},{"$f":"'Working Lunch'!C35","v":"Ab 20 Personen"},{"$f":"IFERROR(INDEX('Working Lunch'!$A$7:$A$50,MATCH(Anzeige!B112,'Working Lunch'!$C$7:$C$50,0)),0)","v":0},{"$f":"'Working Lunch'!E35","v":0},0,""]
[{"$f":"'Working Lunch'!$A$2","v":"Working Lunch"},{"$f":"'Working Lunch'!C36","v":"Käseplatte mit diversem Hart-und Weichkäse, Fleischplatte mit diversen Fleischsorten"},{"$f":"IFERROR(INDEX('Working Lunch'!$A$7:$A$50,MATCH(Anzeige!B113,'Working Lunch'!$C$7:$C$50,0)),0)","v":0},{"$f":"'Working Lunch'!E36","v":0},0,""]
[{"$f":"'Working Lunch'!$A$2","v":"Working Lunch"},{"$f":"'Working Lunch'!C37","v":"garniert mit Huusbrot & Baguette"},{"$f":"IFERROR(INDEX('Working Lunch'!$A$7:$A$50,MATCH(Anzeige!B114,'Working Lunch'!$C$7:$C$50,0)),0)","v":0},{"$f":"'Working Lunch'!E37","v":0},0,""]
[{"$f":"'Working Lunch'!$A$2","v":"Working Lunch"},{"$f":"'Working Lunch'!C38","v":"Gemischter Menüsalat mit Dressing"},{"$f":"IFERROR(INDEX('Working Lunch'!$A$7:$A$50,MATCH(Anzeige!B115,'Working Lunch'!$C$7:$C$50,0)),0)","v":0},{"$f":"'Working Lunch'!E38","v":0},0,""]
[{"$f":"'Working Lunch'!$A$2","v":"Working Lunch"},{"$f":"'Working Lunch'!C39","v":"1 Softdrink 0.5l nach Wahl"},{"$f":"IFERROR(INDEX('Working Lunch'!$A$7:$A$50,MATCH(Anzeige!B116,'Working Lunch'!$C$7:$C$50,0)),0)","v":0},{"$f":"'Working Lunch'!E39","v":0},0,""]
[{"$f":"'Working Lunch'!$A$2","v":"Working Lunch"},{"$f":"'Working Lunch'!C40","v":0},{"$f":"IFERROR(INDEX('Working Lunch'!$A$7:$A$50,MATCH(Anzeige!B117,'Working Lunch'!$C$7:$C$50,0)),0)","v":0},{"$f":"'Working Lunch'!E40","v":0},0,""]
[{"$f":"'Working Lunch'!$A$2","v":"Working Lunch"},{"$f":"'Working Lunch'!C41","v":0},{"$f":"IFERROR(INDEX('Working Lunch'!$A$7:$A$50,MATCH(Anzeige!B118,'Working Lunch'!$C$7:$C$50,0)),0)","v":0},{"$f":"'Working Lunch'!E41","v":0},0,""]
[{"$f":"'Working Lunch'!$A$2","v":"Working Lunch"},{"$f":"'Working Lunch'!C42","v":0},{"$f":"IFERROR(INDEX('Working Lunch'!$A$7:$A$50,MATCH(Anzeige!B119,'Working Lunch'!$C$7:$C$50,0)),0)","v":0},{"$f":"'Working Lunch'!E42","v":0},0,""]
[{"$f":"'Working Lunch'!$A$2","v":"Working Lunch"},{"$f":"'Working Lunch'!C43","v":0},{"$f":"IFERROR(INDEX('Working Lunch'!$A$7:$A$50,MATCH(Anzeige!B120,'Working Lunch'!$C$7:$C$50,0)),0)","v":0},{"$f":"'Working Lunch'!E43","v":0},0,""]
[{"$f":"'Working Lunch'!$A$2","v":"Working Lunch"},{"$f":"'Working Lunch'!C44","v":"DESSERT"},{"$f":"IFERROR(INDEX('Working Lunch'!$A$7:$A$50,MATCH(Anzeige!B121,'Working Lunch'!$C$7:$C$50,0)),0)","v":0},{"$f":"'Working Lunch'!E44","v":"Preis"},0,""]
[{"$f":"'Working Lunch'!$A$2","v":"Working Lunch"},{"$f":"'Working Lunch'!C45","v":0},{"$f":"IFERROR(INDEX('Working Lunch'!$A$7:$A$50,MATCH(Anzeige!B122,'Working Lunch'!$C$7:$C$50,0)),0)","v":0},{"$f":"'Working Lunch'!E45","v":0},0,""]
[{"$f":"'Working Lunch'!$A$2","v":"Working Lunch"},{"$f":"'Working Lunch'!C46","v":"Petit fours / 2 Stück, gemischt"},{"$f":"IFERROR(INDEX('Working Lunch'!$A$7:$A$50,MATCH(Anzeige!B123,'Working Lunch'!$C$7:$C$50,0)),0)","v":0},{"$f":"'Working Lunch'!E46","v":3},0,""]
[{"$f":"'Working Lunch'!$A$2","v":"Working Lunch"},{"$f":"'Working Lunch'!C47","v":"Schokoladenmousse"},{"$f":"IFERROR(INDEX('Working Lunch'!$A$7:$A$50,MATCH(Anzeige!B124,'Working Lunch'!$C$7:$C$50,0)),0)","v":0},{"$f":"'Working Lunch'!E47","v":3.5},0,""]
[{"$f":"'Working Lunch'!$A$2","v":"Working Lunch"},{"$f":"'Working Lunch'!C48","v":"Fruchtsalat im Glas"},{"$f":"IFERROR(INDEX('Working Lunch'!$A$7:$A$50,MATCH(Anzeige!B125,'Working Lunch'!$C$7:$C$50,0)),0)","v":0},{"$f":"'Working Lunch'!E48","v":3.5},0,""]
[{"$f":"'Working Lunch'!$A$2","v":"Working Lunch"},{"$f":"'Working Lunch'!C49","v":"Panna Cotta mit saisonalem Topping"},{"$f":"IFERROR(INDEX('Working Lunch'!$A$7:$A$50,MATCH(Anzeige!B126,'Working Lunch'!$C$7:$C$50,0)),0)","v":0},{"$f":"'Working Lunch'!E49","v":3.5},0,""]
[{"$f":"'Working Lunch'!$A$2","v":"Working Lunch"},{"$f":"'Working Lunch'!C50","v":"Mini Patisserie / assortiert"},{"$f":"IFERROR(INDEX('Working Lunch'!$A$7:$A$50,MATCH(Anzeige!B127,'Working Lunch'!$C$7:$C$50,0)),0)","v":0},{"$f":"'Working Lunch'!E50","v":2.7},0,""]
[{"$f":"Apéro!$A$2","v":"Apéro"},{"$f":"Apéro!C7","v":"Small Apéro"},{"$f":"IFERROR(INDEX(Apéro!$A$7:$A$150,MATCH(Anzeige!B128,Apéro!$C$7:$C$150,0)),0)","v":0},{"$f":"Apéro!E7","v":8.5},{"$f":"IFERROR(D128*C128,0)","v":0},""]
[{"$f":"Apéro!$A$2","v":"Apéro"},{"$f":"Apéro!C8","v":"Nüssli, Chips, Blätterteigstangen "},{"$f":"IFERROR(INDEX(Apéro!$A$7:$A$150,MATCH(Anzeige!B129,Apéro!$C$7:$C$150,0)),0)","v":0},{"$f":"Apéro!E8","v":0},{"$f":"IFERROR(D129*C129,0)","v":0},""]
[{"$f":"Apéro!$A$2","v":"Apéro"},{"$f":"Apéro!C9","v":0},{"$f":"IFERROR(INDEX(Apéro!$A$7:$A$150,MATCH(Anzeige!B130,Apéro!$C$7:$C$150,0)),0)","v":0},{"$f":"Apéro!E9","v":0},0,{"$f":"IF(C130=0,\"\",\"x\")","v":""}]
[{"$f":"Apéro!$A$2","v":"Apéro"},{"$f":"Apéro!C10","v":"Swiss Apéro"},{"$f":"IFERROR(INDEX(Apéro!$A$7:$A$150,MATCH(Anzeige!B131,Apéro!$C$7:$C$150,0)),0)","v":0},{"$f":"Apéro!E10","v":12.5},0,""]
[{"$f":"Apéro!$A$2","v":"Apéro"},{"$f":"Apéro!C11","v":"Party Chäschüechli"},{"$f":"IFERROR(INDEX(Apéro!$A$7:$A$150,MATCH(Anzeige!B132,Apéro!$C$7:$C$150,0)),0)","v":0},{"$f":"Apéro!E11","v":0},0,""]
[{"$f":"Apéro!$A$2","v":"Apéro"},{"$f":"Apéro!C12","v":"Party Schinkengipfeli"},{"$f":"IFERROR(INDEX(Apéro!$A$7:$A$150,MATCH(Anzeige!B133,Apéro!$C$7:$C$150,0)),0)","v":0},{"$f":"Apéro!E12","v":0},0,""]
[{"$f":"Apéro!$A$2","v":"Apéro"},{"$f":"Apéro!C13","v":"Blätterteiggebäck"},{"$f":"IFERROR(INDEX(Apéro!$A$7:$A$150,MATCH(Anzeige!B134,Apéro!$C$7:$C$150,0)),0)","v":0},{"$f":"Apéro!E13","v":0},0,""]
[{"$f":"Apéro!$A$2","v":"Apéro"},{"$f":"Apéro!C14","v":"Gemüsesticks mit Dip"},{"$f":"IFERROR(INDEX(Apéro!$A$7:$A$150,MATCH(Anzeige!B135,Apéro!$C$7:$C$150,0)),0)","v":0},{"$f":"Apéro!E14","v":0},0,""]
[{"$f":"Apéro!$A$2","v":"Apéro"},{"$f":"Apéro!C15","v":0},{"$f":"IFERROR(INDEX(Apéro!$A$7:$A$150,MATCH(Anzeige!B136,Apéro!$C$7:$C$150,0)),0)","v":0},{"$f":"Apéro!E15","v":0},0,""]
[{"$f":"Apéro!$A$2","v":"Apéro"},{"$f":"Apéro!C16","v":"Mediterran Apéro"},{"$f":"IFERROR(INDEX(Apéro!$A$7:$A$150,MATCH(Anzeige!B137,Apéro!$C$7:$C$150,0)),0)","v":0},{"$f":"Apéro!E16","v":19.5},0,""]
[{"$f":"Apéro!$A$2","v":"Apéro"},{"$f":"Apéro!C17","v":"Marinierte Oliven und Parmesanmöckli"},{"$f":"IFERROR(INDEX(Apéro!$A$7:$A$150,MATCH(Anzeige!B138,Apéro!$C$7:$C$150,0)),0)","v":0},{"$f":"Apéro!E17","v":0},0,""]
[{"$f":"Apéro!$A$2","v":"Apéro"},{"$f":"Apéro!C18","v":"Grissini mit Rohschinken"},{"$f":"IFERROR(INDEX(Apéro!$A$7:$A$150,MATCH(Anzeige!B139,Apéro!$C$7:$C$150,0)),0)","v":0},{"$f":"Apéro!E18","v":0},0,""]
[{"$f":"Apéro!$A$2","v":"Apéro"},{"$f":"Apéro!C19","v":"Party Minipizza"},{"$f":"IFERROR(INDEX(Apéro!$A$7:$A$150,MATCH(Anzeige!B140,Apéro!$C$7:$C$150,0)),0)","v":0},{"$f":"Apéro!E19","v":0},0,""]
[{"$f":"Apéro!$A$2","v":"Apéro"},{"$f":"Apéro!C20","v":"Tomaten-Mozzarella Spiessli mit Balsamico"},{"$f":"IFERROR(INDEX(Apéro!$A$7:$A$150,MATCH(Anzeige!B141,Apéro!$C$7:$C$150,0)),0)","v":0},{"$f":"Apéro!E20","v":0},0,""]
[{"$f":"Apéro!$A$2","v":"Apéro"},{"$f":"Apéro!C21","v":"Bruschetta mit frischen Tomaten, Basilikum und Olivenöl"},{"$f":"IFERROR(INDEX(Apéro!$A$7:$A$150,MATCH(Anzeige!B142,Apéro!$C$7:$C$150,0)),0)","v":0},{"$f":"Apéro!E21","v":0},0,""]
[{"$f":"Apéro!$A$2","v":"Apéro"},{"$f":"Apéro!C22","v":"Vitello Tonnato"},{"$f":"IFERROR(INDEX(Apéro!$A$7:$A$150,MATCH(Anzeige!B143,Apéro!$C$7:$C$150,0)),0)","v":0},{"$f":"Apéro!E22","v":0},0,""]
[{"$f":"Apéro!$A$2","v":"Apéro"},{"$f":"Apéro!C23","v":0},{"$f":"IFERROR(INDEX(Apéro!$A$7:$A$150,MATCH(Anzeige!B144,Apéro!$C$7:$C$150,0)),0)","v":0},{"$f":"Apéro!E23","v":0},0,""]
[{"$f":"Apéro!$A$2","v":"Apéro"},{"$f":"Apéro!C24","v":"Asia Apéro"},{"$f":"IFERROR(INDEX(Apéro!$A$7:$A$150,MATCH(Anzeige!B145,Apéro!$C$7:$C$150,0)),0)","v":0},{"$f":"Apéro!E24","v":19.5},0,""]
[{"$f":"Apéro!$A$2","v":"Apéro"},{"$f":"Apéro!C25","v":"Curry Cashews"},{"$f":"IFERROR(INDEX(Apéro!$A$7:$A$150,MATCH(Anzeige!B146,Apéro!$C$7:$C$150,0)),0)","v":0},{"$f":"Apéro!E25","v":0},0,""]
[{"$f":"Apéro!$A$2","v":"Apéro"},{"$f":"Apéro!C26","v":"Mini-Frühlingsrolle mit Sweet Chilisauce"},{"$f":"IFERROR(INDEX(Apéro!$A$7:$A$150,MATCH(Anzeige!B147,Apéro!$C$7:$C$150,0)),0)","v":0},{"$f":"Apéro!E26","v":0},0,""]
[{"$f":"Apéro!$A$2","v":"Apéro"},{"$f":"Apéro!C27","v":"Mini-Gemüse-Samosas mit Curry-Joghurt-Dip"},{"$f":"IFERROR(INDEX(Apéro!$A$7:$A$150,MATCH(Anzeige!B148,Apéro!$C$7:$C$150,0)),0)","v":0},{"$f":"Apéro!E27","v":0},0,""]
[{"$f":"Apéro!$A$2","v":"Apéro"},{"$f":"Apéro!C28","v":"Glasnudelsalat mit Koreander"},{"$f":"IFERROR(INDEX(Apéro!$A$7:$A$150,MATCH(Anzeige!B149,Apéro!$C$7:$C$150,0)),0)","v":0},{"$f":"Apéro!E28","v":0},0,""]
[{"$f":"Apéro!$A$2","v":"Apéro"},{"$f":"Apéro!C29","v":"Tandoori Pouletspiessli mit Erdnusssauce"},{"$f":"IFERROR(INDEX(Apéro!$A$7:$A$150,MATCH(Anzeige!B150,Apéro!$C$7:$C$150,0)),0)","v":0},{"$f":"Apéro!E29","v":0},0,""]
[{"$f":"Apéro!$A$2","v":"Apéro"},{"$f":"Apéro!C30","v":"Crevette auf Mango-Chili-Salat"},{"$f":"IFERROR(INDEX(Apéro!$A$7:$A$150,MATCH(Anzeige!B151,Apéro!$C$7:$C$150,0)),0)","v":0},{"$f":"Apéro!E30","v":0},0,""]
[{"$f":"Apéro!$A$2","v":"Apéro"},{"$f":"Apéro!C31","v":0},{"$f":"IFERROR(INDEX(Apéro!$A$7:$A$150,MATCH(Anzeige!B152,Apéro!$C$7:$C$150,0)),0)","v":0},{"$f":"Apéro!E31","v":0},0,""]
[{"$f":"Apéro!$A$2","v":"Apéro"},{"$f":"Apéro!C32","v":0},{"$f":"IFERROR(INDEX(Apéro!$A$7:$A$150,MATCH(Anzeige!B153,Apéro!$C$7:$C$150,0)),0)","v":0},{"$f":"Apéro!E32","v":0},0,""]
[{"$f":"Apéro!$A$2","v":"Apéro"},{"$f":"Apéro!C33","v":0},{"$f":"IFERROR(INDEX(Apéro!$A$7:$A$150,MATCH(Anzeige!B154,Apéro!$C$7:$C$150,0)),0)","v":0},{"$f":"Apéro!E33","v":0},0,""]
[{"$f":"Apéro!$A$2","v":"Apéro"},{"$f":"Apéro!C34","v":0},{"$f":"IFERROR(INDEX(Apéro!$A$7:$A$150,MATCH(Anzeige!B155,Apéro!$C$7:$C$150,0)),0)","v":0},{"$f":"Apéro!E34","v":0},0,""]
[{"$f":"Apéro!$A$2","v":"Apéro"},{"$f":"Apéro!C35","v":0},{"$f":"IFERROR(INDEX(Apéro!$A$7:$A$150,MATCH(Anzeige!B156,Apéro!$C$7:$C$150,0)),0)","v":0},{"$f":"Apéro!E35","v":0},0,""]
[{"$f":"Apéro!$A$2","v":"Apéro"},{"$f":"Apéro!C36","v":0},{"$f":"IFERROR(INDEX(Apéro!$A$7:$A$150,MATCH(Anzeige!B157,Apéro!$C$7:$C$150,0)),0)","v":0},{"$f":"Apéro!E36","v":0},0,""]
[{"$f":"Apéro!$A$2","v":"Apéro"},{"$f":"Apéro!C37","v":0},{"$f":"IFERROR(INDEX(Apéro!$A$7:$A$150,MATCH(Anzeige!B158,Apéro!$C$7:$C$150,0)),0)","v":0},{"$f":"Apéro!E37","v":0},0,""]
[{"$f":"Apéro!$A$2","v":"Apéro"},{"$f":"Apéro!C38","v":0},{"$f":"IFERROR(INDEX(Apéro!$A$7:$A$150,MATCH(Anzeige!B159,Apéro!$C$7:$C$150,0)),0)","v":0},{"$f":"Apéro!E38","v":0},0,""]
[{"$f":"Apéro!$A$2","v":"Apéro"},{"$f":"Apéro!C39","v":0},{"$f":"IFERROR(INDEX(Apéro!$A$7:$A$150,MATCH(Anzeige!B160,Apéro!$C$7:$C$150,0)),0)","v":0},{"$f":"Apéro!E39","v":0},0,""]
[{"$f":"Apéro!$A$2","v":"Apéro"},{"$f":"Apéro!C40","v":0},{"$f":"IFERROR(INDEX(Apéro!$A$7:$A$150,MATCH(Anzeige!B161,Apéro!$C$7:$C$150,0)),0)","v":0},{"$f":"Apéro!E40","v":0},0,""]
[{"$f":"Apéro!$A$2","v":"Apéro"},{"$f":"Apéro!C41","v":0},{"$f":"IFERROR(INDEX(Apéro!$A$7:$A$150,MATCH(Anzeige!B162,Apéro!$C$7:$C$150,0)),0)","v":0},{"$f":"Apéro!E41","v":0},0,""]
[{"$f":"Apéro!$A$2","v":"Apéro"},{"$f":"Apéro!C42","v":0},{"$f":"IFERROR(INDEX(Apéro!$A$7:$A$150,MATCH(Anzeige!B163,Apéro!$C$7:$C$150,0)),0)","v":0},{"$f":"Apéro!E42","v":0},0,""]
[{"$f":"Apéro!$A$2","v":"Apéro"},{"$f":"Apéro!C43","v":0},{"$f":"IFERROR(INDEX(Apéro!$A$7:$A$150,MATCH(Anzeige!B164,Apéro!$C$7:$C$150,0)),0)","v":0},{"$f":"Apéro!E43","v":0},0,""]
[{"$f":"Apéro!$A$2","v":"Apéro"},{"$f":"Apéro!C44","v":0},{"$f":"IFERROR(INDEX(Apéro!$A$7:$A$150,MATCH(Anzeige!B165,Apéro!$C$7:$C$150,0)),0)","v":0},{"$f":"Apéro!E44","v":0},0,""]
[{"$f":"Apéro!$A$2","v":"Apéro"},{"$f":"Apéro!C45","v":0},{"$f":"IFERROR(INDEX(Apéro!$A$7:$A$150,MATCH(Anzeige!B166,Apéro!$C$7:$C$150,0)),0)","v":0},{"$f":"Apéro!E45","v":0},0,""]
[{"$f":"Apéro!$A$2","v":"Apéro"},{"$f":"Apéro!C46","v":0},{"$f":"IFERROR(INDEX(Apéro!$A$7:$A$150,MATCH(Anzeige!B167,Apéro!$C$7:$C$150,0)),0)","v":0},{"$f":"Apéro!E46","v":0},0,""]
[{"$f":"Apéro!$A$2","v":"Apéro"},{"$f":"Apéro!C47","v":0},{"$f":"IFERROR(INDEX(Apéro!$A$7:$A$150,MATCH(Anzeige!B168,Apéro!$C$7:$C$150,0)),0)","v":0},{"$f":"Apéro!E47","v":0},0,""]
[{"$f":"Apéro!$A$2","v":"Apéro"},{"$f":"Apéro!C48","v":0},{"$f":"IFERROR(INDEX(Apéro!$A$7:$A$150,MATCH(Anzeige!B169,Apéro!$C$7:$C$150,0)),0)","v":0},{"$f":"Apéro!E48","v":0},0,""]
[{"$f":"Apéro!$A$2","v":"Apéro"},{"$f":"Apéro!C49","v":"Alle Platten ab 4 Personen"},{"$f":"IFERROR(INDEX(Apéro!$A$7:$A$150,MATCH(Anzeige!B170,Apéro!$C$7:$C$150,0)),0)","v":0},{"$f":"Apéro!E49","v":"Preis"},0,""]
[{"$f":"Apéro!$A$2","v":"Apéro"},{"$f":"Apéro!C50","v":0},{"$f":"IFERROR(INDEX(Apéro!$A$7:$A$150,MATCH(Anzeige!B171,Apéro!$C$7:$C$150,0)),0)","v":0},{"$f":"Apéro!E50","v":0},0,""]
[{"$f":"Apéro!$A$2","v":"Apéro"},{"$f":"Apéro!C51","v":"Käseplatte"},{"$f":"IFERROR(INDEX(Apéro!$A$7:$A$150,MATCH(Anzeige!B172,Apéro!$C$7:$C$150,0)),0)","v":0},{"$f":"Apéro!E51","v":16.5},0,""]
[{"$f":"Apéro!$A$2","v":"Apéro"},{"$f":"Apéro!C52","v":"Diverse Hart- und Weichkäsesorten, "},{"$f":"IFERROR(INDEX(Apéro!$A$7:$A$150,MATCH(Anzeige!B173,Apéro!$C$7:$C$150,0)),0)","v":0},{"$f":"Apéro!E52","v":0},0,""]
[{"$f":"Apéro!$A$2","v":"Apéro"},{"$f":"Apéro!C53","v":"serviert mit Garnitur, Huusbrot und Baguette"},{"$f":"IFERROR(INDEX(Apéro!$A$7:$A$150,MATCH(Anzeige!B174,Apéro!$C$7:$C$150,0)),0)","v":0},{"$f":"Apéro!E53","v":0},0,""]
[{"$f":"Apéro!$A$2","v":"Apéro"},{"$f":"Apéro!C54","v":0},{"$f":"IFERROR(INDEX(Apéro!$A$7:$A$150,MATCH(Anzeige!B175,Apéro!$C$7:$C$150,0)),0)","v":0},{"$f":"Apéro!E54","v":0},0,""]
[{"$f":"Apéro!$A$2","v":"Apéro"},{"$f":"Apéro!C55","v":"Älplerplatte"},{"$f":"IFERROR(INDEX(Apéro!$A$7:$A$150,MATCH(Anzeige!B176,Apéro!$C$7:$C$150,0)),0)","v":0},{"$f":"Apéro!E55","v":18.5},0,""]
[{"$f":"Apéro!$A$2","v":"Apéro"},{"$f":"Apéro!C56","v":"Diverse Aufschnittsorten, Bergkäse"},{"$f":"IFERROR(INDEX(Apéro!$A$7:$A$150,MATCH(Anzeige!B177,Apéro!$C$7:$C$150,0)),0)","v":0},{"$f":"Apéro!E56","v":0},0,""]
[{"$f":"Apéro!$A$2","v":"Apéro"},{"$f":"Apéro!C57","v":"serviert mit Garnitur, Huusbrot und Baguette"},{"$f":"IFERROR(INDEX(Apéro!$A$7:$A$150,MATCH(Anzeige!B178,Apéro!$C$7:$C$150,0)),0)","v":0},{"$f":"Apéro!E57","v":0},0,""]
[{"$f":"Apéro!$A$2","v":"Apéro"},{"$f":"Apéro!C58","v":0},{"$f":"IFERROR(INDEX(Apéro!$A$7:$A$150,MATCH(Anzeige!B179,Apéro!$C$7:$C$150,0)),0)","v":0},{"$f":"Apéro!E58","v":0},0,""]
[{"$f":"Apéro!$A$2","v":"Apéro"},{"$f":"Apéro!C59","v":"Fleischplatte"},{"$f":"IFERROR(INDEX(Apéro!$A$7:$A$150,MATCH(Anzeige!B180,Apéro!$C$7:$C$150,0)),0)","v":0},{"$f":"Apéro!E59","v":19.5},0,""]
[{"$f":"Apéro!$A$2","v":"Apéro"},{"$f":"Apéro!C60","v":"Diverse Aufschnittsorten ohne Schweinefleisch (z.B. Mostbröckli, "},{"$f":"IFERROR(INDEX(Apéro!$A$7:$A$150,MATCH(Anzeige!B181,Apéro!$C$7:$C$150,0)),0)","v":0},{"$f":"Apéro!E60","v":0},0,""]
[{"$f":"Apéro!$A$2","v":"Apéro"},{"$f":"Apéro!C61","v":"Bündnerfleisch, Pastrami, Trutenbrust, Roastbeef) "},{"$f":"IFERROR(INDEX(Apéro!$A$7:$A$150,MATCH(Anzeige!B182,Apéro!$C$7:$C$150,0)),0)","v":0},{"$f":"Apéro!E61","v":0},0,""]
[{"$f":"Apéro!$A$2","v":"Apéro"},{"$f":"Apéro!C62","v":"serviert mit Garnitur, Huusbrot und Baguette"},{"$f":"IFERROR(INDEX(Apéro!$A$7:$A$150,MATCH(Anzeige!B183,Apéro!$C$7:$C$150,0)),0)","v":0},{"$f":"Apéro!E62","v":0},0,""]
[{"$f":"Apéro!$A$2","v":"Apéro"},{"$f":"Apéro!C63","v":0},{"$f":"IFERROR(INDEX(Apéro!$A$7:$A$150,MATCH(Anzeige!B184,Apéro!$C$7:$C$150,0)),0)","v":0},{"$f":"Apéro!E63","v":0},0,""]
[{"$f":"Apéro!$A$2","v":"Apéro"},{"$f":"Apéro!C64","v":0},{"$f":"IFERROR(INDEX(Apéro!$A$7:$A$150,MATCH(Anzeige!B185,Apéro!$C$7:$C$150,0)),0)","v":0},{"$f":"Apéro!E64","v":0},0,""]
[{"$f":"Apéro!$A$2","v":"Apéro"},{"$f":"Apéro!C65","v":0},{"$f":"IFERROR(INDEX(Apéro!$A$7:$A$150,MATCH(Anzeige!B186,Apéro!$C$7:$C$150,0)),0)","v":0},{"$f":"Apéro!E65","v":0},0,""]
[{"$f":"Apéro!$A$2","v":"Apéro"},{"$f":"Apéro!C66","v":0},{"$f":"IFERROR(INDEX(Apéro!$A$7:$A$150,MATCH(Anzeige!B187,Apéro!$C$7:$C$150,0)),0)","v":0},{"$f":"Apéro!E66","v":0},0,""]
[{"$f":"Apéro!$A$2","v":"Apéro"},{"$f":"Apéro!C67","v":0},{"$f":"IFERROR(INDEX(Apéro!$A$7:$A$150,MATCH(Anzeige!B188,Apéro!$C$7:$C$150,0)),0)","v":0},{"$f":"Apéro!E67","v":0},0,""]
[{"$f":"Apéro!$A$2","v":"Apéro"},{"$f":"Apéro!C68","v":"HOMEMADE SANDWICHES 52CM / 1 PARISETTE = CA. 5 PERSONEN"},{"$f":"IFERROR(INDEX(Apéro!$A$7:$A$150,MATCH(Anzeige!B189,Apéro!$C$7:$C$150,0)),0)","v":0},{"$f":"Apéro!E68","v":"Preis"},0,""]
[{"$f":"Apéro!$A$2","v":"Apéro"},{"$f":"Apéro!C69","v":0},{"$f":"IFERROR(INDEX(Apéro!$A$7:$A$150,MATCH(Anzeige!B190,Apéro!$C$7:$C$150,0)),0)","v":0},{"$f":"Apéro!E69","v":0},0,""]
[{"$f":"Apéro!$A$2","v":"Apéro"},{"$f":"Apéro!C70","v":"Parisette Laugen"},{"$f":"IFERROR(INDEX(Apéro!$A$7:$A$150,MATCH(Anzeige!B191,Apéro!$C$7:$C$150,0)),0)","v":0},{"$f":"Apéro!E70","v":35},0,""]
[{"$f":"Apéro!$A$2","v":"Apéro"},{"$f":"Apéro!C71","v":"Brie, Butter, Lollosalat, Gurken, Tomaten, Baumnüsse"},{"$f":"IFERROR(INDEX(Apéro!$A$7:$A$150,MATCH(Anzeige!B192,Apéro!$C$7:$C$150,0)),0)","v":0},{"$f":"Apéro!E71","v":0},0,""]
[{"$f":"Apéro!$A$2","v":"Apéro"},{"$f":"Apéro!C72","v":0},{"$f":"IFERROR(INDEX(Apéro!$A$7:$A$150,MATCH(Anzeige!B193,Apéro!$C$7:$C$150,0)),0)","v":0},{"$f":"Apéro!E72","v":0},{"$f":"IFERROR(D193*C193,0)","v":0},""]
[{"$f":"Apéro!$A$2","v":"Apéro"},{"$f":"Apéro!C73","v":"Parisette Laugen"},{"$f":"IFERROR(INDEX(Apéro!$A$7:$A$150,MATCH(Anzeige!B194,Apéro!$C$7:$C$150,0)),0)","v":0},{"$f":"Apéro!E73","v":35},0,{"$f":"IF(C194=0,\"\",\"x\")","v":""}]
[{"$f":"Apéro!$A$2","v":"Apéro"},{"$f":"Apéro!C74","v":"Bergkäse, Eier, Mayonnaise, Gurken, Kresse"},{"$f":"IFERROR(INDEX(Apéro!$A$7:$A$150,MATCH(Anzeige!B195,Apéro!$C$7:$C$150,0)),0)","v":0},{"$f":"Apéro!E74","v":0},0,""]
[{"$f":"Apéro!$A$2","v":"Apéro"},{"$f":"Apéro!C75","v":0},{"$f":"IFERROR(INDEX(Apéro!$A$7:$A$150,MATCH(Anzeige!B196,Apéro!$C$7:$C$150,0)),0)","v":0},{"$f":"Apéro!E75","v":0},0,""]
[{"$f":"Apéro!$A$2","v":"Apéro"},{"$f":"Apéro!C76","v":"Parisette hell"},{"$f":"IFERROR(INDEX(Apéro!$A$7:$A$150,MATCH(Anzeige!B197,Apéro!$C$7:$C$150,0)),0)","v":0},{"$f":"Apéro!E76","v":35},0,""]
[{"$f":"Apéro!$A$2","v":"Apéro"},{"$f":"Apéro!C77","v":"Tomate, Mozzarella, Basilikum, Pesto und Rucola"},{"$f":"IFERROR(INDEX(Apéro!$A$7:$A$150,MATCH(Anzeige!B198,Apéro!$C$7:$C$150,0)),0)","v":0},{"$f":"Apéro!E77","v":0},0,""]
[{"$f":"Apéro!$A$2","v":"Apéro"},{"$f":"Apéro!C78","v":0},{"$f":"IFERROR(INDEX(Apéro!$A$7:$A$150,MATCH(Anzeige!B199,Apéro!$C$7:$C$150,0)),0)","v":0},{"$f":"Apéro!E78","v":0},0,""]
[{"$f":"Apéro!$A$2","v":"Apéro"},{"$f":"Apéro!C79","v":"Parisette hell"},{"$f":"IFERROR(INDEX(Apéro!$A$7:$A$150,MATCH(Anzeige!B200,Apéro!$C$7:$C$150,0)),0)","v":0},{"$f":"Apéro!E79","v":35},0,""]
[{"$f":"Apéro!$A$2","v":"Apéro"},{"$f":"Apéro!C80","v":"Trutenbrust, Ei, Tartarsauce, Cornichons, Tomate, Lollosalat"},{"$f":"IFERROR(INDEX(Apéro!$A$7:$A$150,MATCH(Anzeige!B201,Apéro!$C$7:$C$150,0)),0)","v":0},{"$f":"Apéro!E80","v":0},0,""]
[{"$f":"Apéro!$A$2","v":"Apéro"},{"$f":"Apéro!C81","v":0},{"$f":"IFERROR(INDEX(Apéro!$A$7:$A$150,MATCH(Anzeige!B202,Apéro!$C$7:$C$150,0)),0)","v":0},{"$f":"Apéro!E81","v":0},0,""]
[{"$f":"Apéro!$A$2","v":"Apéro"},{"$f":"Apéro!C82","v":"Parisette dunkel"},{"$f":"IFERROR(INDEX(Apéro!$A$7:$A$150,MATCH(Anzeige!B203,Apéro!$C$7:$C$150,0)),0)","v":0},{"$f":"Apéro!E82","v":40},0,""]
[{"$f":"Apéro!$A$2","v":"Apéro"},{"$f":"Apéro!C83","v":"Rauchlachs, Cantadou, Kopfsalat, Kapern, Zwiebeln, Meerrettich "},{"$f":"IFERROR(INDEX(Apéro!$A$7:$A$150,MATCH(Anzeige!B204,Apéro!$C$7:$C$150,0)),0)","v":0},{"$f":"Apéro!E83","v":0},0,""]
[{"$f":"Apéro!$A$2","v":"Apéro"},{"$f":"Apéro!C84","v":0},{"$f":"IFERROR(INDEX(Apéro!$A$7:$A$150,MATCH(Anzeige!B205,Apéro!$C$7:$C$150,0)),0)","v":0},{"$f":"Apéro!E84","v":0},0,""]
[{"$f":"Apéro!$A$2","v":"Apéro"},{"$f":"Apéro!C85","v":"Parisette dunkel"},{"$f":"IFERROR(INDEX(Apéro!$A$7:$A$150,MATCH(Anzeige!B206,Apéro!$C$7:$C$150,0)),0)","v":0},{"$f":"Apéro!E85","v":40},0,""]
[{"$f":"Apéro!$A$2","v":"Apéro"},{"$f":"Apéro!C86","v":"Roastbeef, Coleslaw, Tomate, Senfbutter, Eisbergsalat"},{"$f":"IFERROR(INDEX(Apéro!$A$7:$A$150,MATCH(Anzeige!B207,Apéro!$C$7:$C$150,0)),0)","v":0},{"$f":"Apéro!E86","v":0},0,""]
[{"$f":"Apéro!$A$2","v":"Apéro"},{"$f":"Apéro!C87","v":0},{"$f":"IFERROR(INDEX(Apéro!$A$7:$A$150,MATCH(Anzeige!B208,Apéro!$C$7:$C$150,0)),0)","v":0},{"$f":"Apéro!E87","v":0},0,""]
[{"$f":"Apéro!$A$2","v":"Apéro"},{"$f":"Apéro!C88","v":0},{"$f":"IFERROR(INDEX(Apéro!$A$7:$A$150,MATCH(Anzeige!B209,Apéro!$C$7:$C$150,0)),0)","v":0},{"$f":"Apéro!E88","v":0},0,""]
[{"$f":"Apéro!$A$2","v":"Apéro"},{"$f":"Apéro!C89","v":"MINI SANDICHES      Mindestbestellmenge: 5 Stück"},{"$f":"IFERROR(INDEX(Apéro!$A$7:$A$150,MATCH(Anzeige!B210,Apéro!$C$7:$C$150,0)),0)","v":0},{"$f":"Apéro!E89","v":0},0,""]
[{"$f":"Apéro!$A$2","v":"Apéro"},{"$f":"Apéro!C90","v":0},{"$f":"IFERROR(INDEX(Apéro!$A$7:$A$150,MATCH(Anzeige!B211,Apéro!$C$7:$C$150,0)),0)","v":0},{"$f":"Apéro!E90","v":0},0,""]
[{"$f":"Apéro!$A$2","v":"Apéro"},{"$f":"Apéro!C91","v":"In 5 versch. Brötli (assortiert: Nature, Mehrkorn, Tomate, Oliven, Feta-Peperoni, Walnuss-Haselnuss)"},{"$f":"IFERROR(INDEX(Apéro!$A$7:$A$150,MATCH(Anzeige!B212,Apéro!$C$7:$C$150,0)),0)","v":0},{"$f":"Apéro!E91","v":0},0,""]
[{"$f":"Apéro!$A$2","v":"Apéro"},{"$f":"Apéro!C92","v":"Brie & Birnen"},{"$f":"IFERROR(INDEX(Apéro!$A$7:$A$150,MATCH(Anzeige!B213,Apéro!$C$7:$C$150,0)),0)","v":0},{"$f":"Apéro!E92","v":3.5},0,""]
[{"$f":"Apéro!$A$2","v":"Apéro"},{"$f":"Apéro!C93","v":"Ei & Kresse"},{"$f":"IFERROR(INDEX(Apéro!$A$7:$A$150,MATCH(Anzeige!B214,Apéro!$C$7:$C$150,0)),0)","v":0},{"$f":"Apéro!E93","v":3.5},0,""]
[{"$f":"Apéro!$A$2","v":"Apéro"},{"$f":"Apéro!C94","v":"Sternenberger Käse"},{"$f":"IFERROR(INDEX(Apéro!$A$7:$A$150,MATCH(Anzeige!B215,Apéro!$C$7:$C$150,0)),0)","v":0},{"$f":"Apéro!E94","v":3.5},0,""]
[{"$f":"Apéro!$A$2","v":"Apéro"},{"$f":"Apéro!C95","v":"Salami"},{"$f":"IFERROR(INDEX(Apéro!$A$7:$A$150,MATCH(Anzeige!B216,Apéro!$C$7:$C$150,0)),0)","v":0},{"$f":"Apéro!E95","v":3.5},0,""]
[{"$f":"Apéro!$A$2","v":"Apéro"},{"$f":"Apéro!C96","v":"Gekochter Schinken"},{"$f":"IFERROR(INDEX(Apéro!$A$7:$A$150,MATCH(Anzeige!B217,Apéro!$C$7:$C$150,0)),0)","v":0},{"$f":"Apéro!E96","v":3.5},0,""]
[{"$f":"Apéro!$A$2","v":"Apéro"},{"$f":"Apéro!C97","v":"Rohschinken & Rucola"},{"$f":"IFERROR(INDEX(Apéro!$A$7:$A$150,MATCH(Anzeige!B218,Apéro!$C$7:$C$150,0)),0)","v":0},{"$f":"Apéro!E97","v":3.5},0,""]
[{"$f":"Apéro!$A$2","v":"Apéro"},{"$f":"Apéro!C98","v":"Mostbröckli"},{"$f":"IFERROR(INDEX(Apéro!$A$7:$A$150,MATCH(Anzeige!B219,Apéro!$C$7:$C$150,0)),0)","v":0},{"$f":"Apéro!E98","v":3.5},0,""]
[{"$f":"Apéro!$A$2","v":"Apéro"},{"$f":"Apéro!C99","v":"Lachs, Zwiebeln & Kapern"},{"$f":"IFERROR(INDEX(Apéro!$A$7:$A$150,MATCH(Anzeige!B220,Apéro!$C$7:$C$150,0)),0)","v":0},{"$f":"Apéro!E99","v":3.5},0,""]
[{"$f":"Apéro!$A$2","v":"Apéro"},{"$f":"Apéro!C100","v":"Thonmousse mit Mayonnaise"},{"$f":"IFERROR(INDEX(Apéro!$A$7:$A$150,MATCH(Anzeige!B221,Apéro!$C$7:$C$150,0)),0)","v":0},{"$f":"Apéro!E100","v":3.5},0,""]
[{"$f":"Apéro!$A$2","v":"Apéro"},{"$f":"Apéro!C101","v":0},{"$f":"IFERROR(INDEX(Apéro!$A$7:$A$150,MATCH(Anzeige!B222,Apéro!$C$7:$C$150,0)),0)","v":0},{"$f":"Apéro!E101","v":0},0,""]
[{"$f":"Apéro!$A$2","v":"Apéro"},{"$f":"Apéro!C102","v":0},{"$f":"IFERROR(INDEX(Apéro!$A$7:$A$150,MATCH(Anzeige!B223,Apéro!$C$7:$C$150,0)),0)","v":0},{"$f":"Apéro!E102","v":0},0,""]
[{"$f":"Apéro!$A$2","v":"Apéro"},{"$f":"Apéro!C103","v":0},{"$f":"IFERROR(INDEX(Apéro!$A$7:$A$150,MATCH(Anzeige!B224,Apéro!$C$7:$C$150,0)),0)","v":0},{"$f":"Apéro!E103","v":0},0,""]
[{"$f":"Apéro!$A$2","v":"Apéro"},{"$f":"Apéro!C104","v":0},{"$f":"IFERROR(INDEX(Apéro!$A$7:$A$150,MATCH(Anzeige!B225,Apéro!$C$7:$C$150,0)),0)","v":0},{"$f":"Apéro!E104","v":0},0,""]
[{"$f":"Apéro!$A$2","v":"Apéro"},{"$f":"Apéro!C105","v":0},{"$f":"IFERROR(INDEX(Apéro!$A$7:$A$150,MATCH(Anzeige!B226,Apéro!$C$7:$C$150,0)),0)","v":0},{"$f":"Apéro!E105","v":0},0,""]
[{"$f":"Apéro!$A$2","v":"Apéro"},{"$f":"Apéro!C106","v":0},{"$f":"IFERROR(INDEX(Apéro!$A$7:$A$150,MATCH(Anzeige!B227,Apéro!$C$7:$C$150,0)),0)","v":0},{"$f":"Apéro!E106","v":0},0,""]
[{"$f":"Apéro!$A$2","v":"Apéro"},{"$f":"Apéro!C107","v":0},{"$f":"IFERROR(INDEX(Apéro!$A$7:$A$150,MATCH(Anzeige!B228,Apéro!$C$7:$C$150,0)),0)","v":0},{"$f":"Apéro!E107","v":0},0,""]
[{"$f":"Apéro!$A$2","v":"Apéro"},{"$f":"Apéro!C108","v":0},{"$f":"IFERROR(INDEX(Apéro!$A$7:$A$150,MATCH(Anzeige!B229,Apéro!$C$7:$C$150,0)),0)","v":0},{"$f":"Apéro!E108","v":0},0,""]
[{"$f":"Apéro!$A$2","v":"Apéro"},{"$f":"Apéro!C109","v":0},{"$f":"IFERROR(INDEX(Apéro!$A$7:$A$150,MATCH(Anzeige!B230,Apéro!$C$7:$C$150,0)),0)","v":0},{"$f":"Apéro!E109","v":0},0,""]
[{"$f":"Apéro!$A$2","v":"Apéro"},{"$f":"Apéro!C110","v":0},{"$f":"IFERROR(INDEX(Apéro!$A$7:$A$150,MATCH(Anzeige!B231,Apéro!$C$7:$C$150,0)),0)","v":0},{"$f":"Apéro!E110","v":0},0,""]
[{"$f":"Apéro!$A$2","v":"Apéro"},{"$f":"Apéro!C111","v":"Mindestbestellmenge: 6 Stück pro Sorte"},{"$f":"IFERROR(INDEX(Apéro!$A$7:$A$150,MATCH(Anzeige!B232,Apéro!$C$7:$C$150,0)),0)","v":0},{"$f":"Apéro!E111","v":"Preis"},0,""]
[{"$f":"Apéro!$A$2","v":"Apéro"},{"$f":"Apéro!C112","v":0},{"$f":"IFERROR(INDEX(Apéro!$A$7:$A$150,MATCH(Anzeige!B233,Apéro!$C$7:$C$150,0)),0)","v":0},{"$f":"Apéro!E112","v":0},0,""]
[{"$f":"Apéro!$A$2","v":"Apéro"},{"$f":"Apéro!C113","v":"FINGERFOOD kalt"},{"$f":"IFERROR(INDEX(Apéro!$A$7:$A$150,MATCH(Anzeige!B234,Apéro!$C$7:$C$150,0)),0)","v":0},{"$f":"Apéro!E113","v":0},0,""]
[{"$f":"Apéro!$A$2","v":"Apéro"},{"$f":"Apéro!C114","v":0},{"$f":"IFERROR(INDEX(Apéro!$A$7:$A$150,MATCH(Anzeige!B235,Apéro!$C$7:$C$150,0)),0)","v":0},{"$f":"Apéro!E114","v":0},0,""]
[{"$f":"Apéro!$A$2","v":"Apéro"},{"$f":"Apéro!C115","v":"Crudité mit 2 Dips"},{"$f":"IFERROR(INDEX(Apéro!$A$7:$A$150,MATCH(Anzeige!B236,Apéro!$C$7:$C$150,0)),0)","v":0},{"$f":"Apéro!E115","v":3},0,""]
[{"$f":"Apéro!$A$2","v":"Apéro"},{"$f":"Apéro!C116","v":"Marinierte Oliven & Parmesanmöckli"},{"$f":"IFERROR(INDEX(Apéro!$A$7:$A$150,MATCH(Anzeige!B237,Apéro!$C$7:$C$150,0)),0)","v":0},{"$f":"Apéro!E116","v":6},0,""]
[{"$f":"Apéro!$A$2","v":"Apéro"},{"$f":"Apéro!C117","v":"Bruschetta mit Tomaten & Basilikum "},{"$f":"IFERROR(INDEX(Apéro!$A$7:$A$150,MATCH(Anzeige!B238,Apéro!$C$7:$C$150,0)),0)","v":0},{"$f":"Apéro!E117","v":3},0,""]
[{"$f":"Apéro!$A$2","v":"Apéro"},{"$f":"Apéro!C118","v":"Tomaten-Mozzarella-Spiess"},{"$f":"IFERROR(INDEX(Apéro!$A$7:$A$150,MATCH(Anzeige!B239,Apéro!$C$7:$C$150,0)),0)","v":0},{"$f":"Apéro!E118","v":3},0,""]
[{"$f":"Apéro!$A$2","v":"Apéro"},{"$f":"Apéro!C119","v":"Glasnudelsalat mit Koriander"},{"$f":"IFERROR(INDEX(Apéro!$A$7:$A$150,MATCH(Anzeige!B240,Apéro!$C$7:$C$150,0)),0)","v":0},{"$f":"Apéro!E119","v":3.5},0,""]
[{"$f":"Apéro!$A$2","v":"Apéro"},{"$f":"Apéro!C120","v":"Vitello Tonnato mit Kapernäpfel"},{"$f":"IFERROR(INDEX(Apéro!$A$7:$A$150,MATCH(Anzeige!B241,Apéro!$C$7:$C$150,0)),0)","v":0},{"$f":"Apéro!E120","v":4},0,""]
[{"$f":"Apéro!$A$2","v":"Apéro"},{"$f":"Apéro!C121","v":"Tandoori Pouletspiessli mit Sataysauce "},{"$f":"IFERROR(INDEX(Apéro!$A$7:$A$150,MATCH(Anzeige!B242,Apéro!$C$7:$C$150,0)),0)","v":0},{"$f":"Apéro!E121","v":4},0,""]
[{"$f":"Apéro!$A$2","v":"Apéro"},{"$f":"Apéro!C122","v":"Rindstatar auf Crostini"},{"$f":"IFERROR(INDEX(Apéro!$A$7:$A$150,MATCH(Anzeige!B243,Apéro!$C$7:$C$150,0)),0)","v":0},{"$f":"Apéro!E122","v":4},0,""]
[{"$f":"Apéro!$A$2","v":"Apéro"},{"$f":"Apéro!C123","v":"Crevette mit Mango-Chili-Salsa"},{"$f":"IFERROR(INDEX(Apéro!$A$7:$A$150,MATCH(Anzeige!B244,Apéro!$C$7:$C$150,0)),0)","v":0},{"$f":"Apéro!E123","v":4},0,""]
[{"$f":"Apéro!$A$2","v":"Apéro"},{"$f":"Apéro!C124","v":0},{"$f":"IFERROR(INDEX(Apéro!$A$7:$A$150,MATCH(Anzeige!B245,Apéro!$C$7:$C$150,0)),0)","v":0},{"$f":"Apéro!E124","v":0},0,""]
[{"$f":"Apéro!$A$2","v":"Apéro"},{"$f":"Apéro!C125","v":"FINGERFOOD warm "},{"$f":"IFERROR(INDEX(Apéro!$A$7:$A$150,MATCH(Anzeige!B246,Apéro!$C$7:$C$150,0)),0)","v":0},{"$f":"Apéro!E125","v":"Preis"},0,""]
[{"$f":"Apéro!$A$2","v":"Apéro"},{"$f":"Apéro!C126","v":0},{"$f":"IFERROR(INDEX(Apéro!$A$7:$A$150,MATCH(Anzeige!B247,Apéro!$C$7:$C$150,0)),0)","v":0},{"$f":"Apéro!E126","v":0},0,""]
[{"$f":"Apéro!$A$2","v":"Apéro"},{"$f":"Apéro!C127","v":"Mini Chäs-, Spinat-, Gemüsechüechli"},{"$f":"IFERROR(INDEX(Apéro!$A$7:$A$150,MATCH(Anzeige!B248,Apéro!$C$7:$C$150,0)),0)","v":0},{"$f":"Apéro!E127","v":2.5},0,""]
[{"$f":"Apéro!$A$2","v":"Apéro"},{"$f":"Apéro!C128","v":"Gemüse-Samosas mit Curry-Joghurt-Dip"},{"$f":"IFERROR(INDEX(Apéro!$A$7:$A$150,MATCH(Anzeige!B249,Apéro!$C$7:$C$150,0)),0)","v":0},{"$f":"Apéro!E128","v":2.5},0,""]
[{"$f":"Apéro!$A$2","v":"Apéro"},{"$f":"Apéro!C129","v":"Frühlingsrolle mit Sweet-Chilisauce"},{"$f":"IFERROR(INDEX(Apéro!$A$7:$A$150,MATCH(Anzeige!B250,Apéro!$C$7:$C$150,0)),0)","v":0},{"$f":"Apéro!E129","v":2.5},0,""]
[{"$f":"Apéro!$A$2","v":"Apéro"},{"$f":"Apéro!C130","v":"Schinkengipfeli"},{"$f":"IFERROR(INDEX(Apéro!$A$7:$A$150,MATCH(Anzeige!B251,Apéro!$C$7:$C$150,0)),0)","v":0},{"$f":"Apéro!E130","v":2.5},0,""]
[{"$f":"Apéro!$A$2","v":"Apéro"},{"$f":"Apéro!C131","v":"Mini Pizza "},{"$f":"IFERROR(INDEX(Apéro!$A$7:$A$150,MATCH(Anzeige!B252,Apéro!$C$7:$C$150,0)),0)","v":0},{"$f":"Apéro!E131","v":3.5},0,""]
[{"$f":"Apéro!$A$2","v":"Apéro"},{"$f":"Apéro!C132","v":"Mini-Burger mit Rindfleisch"},{"$f":"IFERROR(INDEX(Apéro!$A$7:$A$150,MATCH(Anzeige!B253,Apéro!$C$7:$C$150,0)),0)","v":0},{"$f":"Apéro!E132","v":4},0,""]
[{"$f":"Apéro!$A$2","v":"Apéro"},{"$f":"Apéro!C133","v":"Saisonale Süppe im Glas"},{"$f":"IFERROR(INDEX(Apéro!$A$7:$A$150,MATCH(Anzeige!B254,Apéro!$C$7:$C$150,0)),0)","v":0},{"$f":"Apéro!E133","v":3},0,""]
[{"$f":"Apéro!$A$2","v":"Apéro"},{"$f":"Apéro!C134","v":0},{"$f":"IFERROR(INDEX(Apéro!$A$7:$A$150,MATCH(Anzeige!B255,Apéro!$C$7:$C$150,0)),0)","v":0},{"$f":"Apéro!E134","v":0},0,""]
[{"$f":"Apéro!$A$2","v":"Apéro"},{"$f":"Apéro!C135","v":"SWEET DREAMS"},{"$f":"IFERROR(INDEX(Apéro!$A$7:$A$150,MATCH(Anzeige!B256,Apéro!$C$7:$C$150,0)),0)","v":0},{"$f":"Apéro!E135","v":0},0,""]
[{"$f":"Apéro!$A$2","v":"Apéro"},{"$f":"Apéro!C136","v":0},{"$f":"IFERROR(INDEX(Apéro!$A$7:$A$150,MATCH(Anzeige!B257,Apéro!$C$7:$C$150,0)),0)","v":0},{"$f":"Apéro!E136","v":0},{"$f":"IFERROR(D257*C257,0)","v":0},""]
[{"$f":"Apéro!$A$2","v":"Apéro"},{"$f":"Apéro!C137","v":"Petit fours / 2 Stück, gemischt"},{"$f":"IFERROR(INDEX(Apéro!$A$7:$A$150,MATCH(Anzeige!B258,Apéro!$C$7:$C$150,0)),0)","v":0},{"$f":"Apéro!E137","v":3},0,{"$f":"IF(C258=0,\"\",\"x\")","v":""}]
[{"$f":"Apéro!$A$2","v":"Apéro"},{"$f":"Apéro!C138","v":"Schokoladenmousse"},{"$f":"IFERROR(INDEX(Apéro!$A$7:$A$150,MATCH(Anzeige!B259,Apéro!$C$7:$C$150,0)),0)","v":0},{"$f":"Apéro!E138","v":3.5},0,""]
[{"$f":"Apéro!$A$2","v":"Apéro"},{"$f":"Apéro!C139","v":"Fruchtsalat im Glas"},{"$f":"IFERROR(INDEX(Apéro!$A$7:$A$150,MATCH(Anzeige!B260,Apéro!$C$7:$C$150,0)),0)","v":0},{"$f":"Apéro!E139","v":3.5},0,""]
[{"$f":"Apéro!$A$2","v":"Apéro"},{"$f":"Apéro!C140","v":"Mini Patisserie / assortiert"},{"$f":"IFERROR(INDEX(Apéro!$A$7:$A$150,MATCH(Anzeige!B261,Apéro!$C$7:$C$150,0)),0)","v":0},{"$f":"Apéro!E140","v":2.7},0,""]
[{"$f":"Getränke!$A$2","v":"Getränke"},{"$f":"Getränke!C8","v":"Valser mit Kohlensäure"},{"$f":"IFERROR(INDEX(Getränke!$A$7:$A$148,MATCH(Anzeige!B262,Getränke!$C$7:$C$148,0)),0)","v":0},{"$f":"Getränke!E8","v":2.5},{"$f":"IFERROR(D262*C262,0)","v":0},""]
[{"$f":"Getränke!$A$2","v":"Getränke"},{"$f":"Getränke!C9","v":"Valser ohne Kohlensäure"},{"$f":"IFERROR(INDEX(Getränke!$A$7:$A$148,MATCH(Anzeige!B263,Getränke!$C$7:$C$148,0)),0)","v":0},{"$f":"Getränke!E9","v":2.5},0,""]
[{"$f":"Getränke!$A$2","v":"Getränke"},{"$f":"Getränke!C10","v":"Valser Viva"},{"$f":"IFERROR(INDEX(Getränke!$A$7:$A$148,MATCH(Anzeige!B264,Getränke!$C$7:$C$148,0)),0)","v":0},{"$f":"Getränke!E10","v":2.8},0,""]
[{"$f":"Getränke!$A$2","v":"Getränke"},{"$f":"Getränke!C11","v":"Coca Cola"},{"$f":"IFERROR(INDEX(Getränke!$A$7:$A$148,MATCH(Anzeige!B265,Getränke!$C$7:$C$148,0)),0)","v":0},{"$f":"Getränke!E11","v":2.8},0,""]
[{"$f":"Getränke!$A$2","v":"Getränke"},{"$f":"Getränke!C12","v":"Coca Cola Zero"},{"$f":"IFERROR(INDEX(Getränke!$A$7:$A$148,MATCH(Anzeige!B266,Getränke!$C$7:$C$148,0)),0)","v":0},{"$f":"Getränke!E12","v":2.8},0,""]
[{"$f":"Getränke!$A$2","v":"Getränke"},{"$f":"Getränke!C13","v":"Sprite"},{"$f":"IFERROR(INDEX(Getränke!$A$7:$A$148,MATCH(Anzeige!B267,Getränke!$C$7:$C$148,0)),0)","v":0},{"$f":"Getränke!E13","v":2.8},0,""]
[{"$f":"Getränke!$A$2","v":"Getränke"},{"$f":"Getränke!C14","v":"Fanta"},{"$f":"IFERROR(INDEX(Getränke!$A$7:$A$148,MATCH(Anzeige!B268,Getränke!$C$7:$C$148,0)),0)","v":0},{"$f":"Getränke!E14","v":2.8},0,""]
[{"$f":"Getränke!$A$2","v":"Getränke"},{"$f":"Getränke!C15","v":"Rivella Rot"},{"$f":"IFERROR(INDEX(Getränke!$A$7:$A$148,MATCH(Anzeige!B269,Getränke!$C$7:$C$148,0)),0)","v":0},{"$f":"Getränke!E15","v":2.8},0,""]
[{"$f":"Getränke!$A$2","v":"Getränke"},{"$f":"Getränke!C16","v":"Rivella Blau"},{"$f":"IFERROR(INDEX(Getränke!$A$7:$A$148,MATCH(Anzeige!B270,Getränke!$C$7:$C$148,0)),0)","v":0},{"$f":"Getränke!E16","v":2.8},0,""]
[{"$f":"Getränke!$A$2","v":"Getränke"},{"$f":"Getränke!C17","v":"Rivella Grün"},{"$f":"IFERROR(INDEX(Getränke!$A$7:$A$148,MATCH(Anzeige!B271,Getränke!$C$7:$C$148,0)),0)","v":0},{"$f":"Getränke!E17","v":2.8},0,""]
[{"$f":"Getränke!$A$2","v":"Getränke"},{"$f":"Getränke!C18","v":"Neste Ice Tea  Lemon"},{"$f":"IFERROR(INDEX(Getränke!$A$7:$A$148,MATCH(Anzeige!B272,Getränke!$C$7:$C$148,0)),0)","v":0},{"$f":"Getränke!E18","v":2.8},0,""]
[{"$f":"Getränke!$A$2","v":"Getränke"},{"$f":"Getränke!#REF!","v":{"$error":"#REF!"}},{"$f":"IFERROR(INDEX(Getränke!$A$7:$A$148,MATCH(Anzeige!B273,Getränke!$C$7:$C$148,0)),0)","v":0},{"$f":"Getränke!#REF!","v":{"$error":"#REF!"}},0,""]
[{"$f":"Getränke!$A$2","v":"Getränke"},{"$f":"Getränke!C19","v":"Cold Brew Black Tea ASSAM"},{"$f":"IFERROR(INDEX(Getränke!$A$7:$A$148,MATCH(Anzeige!B274,Getränke!$C$7:$C$148,0)),0)","v":0},{"$f":"Getränke!E19","v":2.8},0,""]
[{"$f":"Getränke!$A$2","v":"Getränke"},{"$f":"Getränke!C20","v":"VIVITZ BIO-Eistee Zitrone"},{"$f":"IFERROR(INDEX(Getränke!$A$7:$A$148,MATCH(Anzeige!B275,Getränke!$C$7:$C$148,0)),0)","v":0},{"$f":"Getränke!E20","v":3.5},0,""]
[{"$f":"Getränke!$A$2","v":"Getränke"},{"$f":"Getränke!C21","v":"VIVITZ BIO-Eistee Apfelminze"},{"$f":"IFERROR(INDEX(Getränke!$A$7:$A$148,MATCH(Anzeige!B276,Getränke!$C$7:$C$148,0)),0)","v":0},{"$f":"Getränke!E21","v":3.5},0,""]
[{"$f":"Getränke!$A$2","v":"Getränke"},{"$f":"Getränke!C22","v":"VIVITZ BIO-Eistee Grüntee"},{"$f":"IFERROR(INDEX(Getränke!$A$7:$A$148,MATCH(Anzeige!B277,Getränke!$C$7:$C$148,0)),0)","v":0},{"$f":"Getränke!E22","v":3.5},0,""]
[{"$f":"Getränke!$A$2","v":"Getränke"},{"$f":"Getränke!C23","v":"VIVITZ BIO-Eistee Easy Fruits"},{"$f":"IFERROR(INDEX(Getränke!$A$7:$A$148,MATCH(Anzeige!B278,Getränke!$C$7:$C$148,0)),0)","v":0},{"$f":"Getränke!E23","v":3.5},0,""]
[{"$f":"Getränke!$A$2","v":"Getränke"},{"$f":"Getränke!C24","v":"Hausgemachter Eldora-Eistee Lemongrass-Ginger"},{"$f":"IFERROR(INDEX(Getränke!$A$7:$A$148,MATCH(Anzeige!B279,Getränke!$C$7:$C$148,0)),0)","v":0},{"$f":"Getränke!E24","v":2.5},0,""]
[{"$f":"Getränke!$A$2","v":"Getränke"},{"$f":"Getränke!C25","v":"Hausgemachter Eldora-Eistee Hisbiskus-Rooibos"},{"$f":"IFERROR(INDEX(Getränke!$A$7:$A$148,MATCH(Anzeige!B280,Getränke!$C$7:$C$148,0)),0)","v":0},{"$f":"Getränke!E25","v":2.5},0,""]
[{"$f":"Getränke!$A$2","v":"Getränke"},{"$f":"Getränke!C26","v":"VIVITZ Schorle Rhabarber"},{"$f":"IFERROR(INDEX(Getränke!$A$7:$A$148,MATCH(Anzeige!B281,Getränke!$C$7:$C$148,0)),0)","v":0},{"$f":"Getränke!E26","v":3.5},0,""]
[{"$f":"Getränke!$A$2","v":"Getränke"},{"$f":"Getränke!C27","v":"VIVITZ Schorle Apfel-Holunder"},{"$f":"IFERROR(INDEX(Getränke!$A$7:$A$148,MATCH(Anzeige!B282,Getränke!$C$7:$C$148,0)),0)","v":0},{"$f":"Getränke!E27","v":3.5},0,""]
[{"$f":"Getränke!$A$2","v":"Getränke"},{"$f":"Getränke!C28","v":"BIO Apfelschorle"},{"$f":"IFERROR(INDEX(Getränke!$A$7:$A$148,MATCH(Anzeige!B283,Getränke!$C$7:$C$148,0)),0)","v":0},{"$f":"Getränke!E28","v":3.5},0,""]
[{"$f":"Getränke!$A$2","v":"Getränke"},{"$f":"Getränke!C29","v":"Captain Kambucha"},{"$f":"IFERROR(INDEX(Getränke!$A$7:$A$148,MATCH(Anzeige!B284,Getränke!$C$7:$C$148,0)),0)","v":0},{"$f":"Getränke!E29","v":3.5},0,""]
[{"$f":"Getränke!$A$2","v":"Getränke"},{"$f":"Getränke!C30","v":"Red Bull"},{"$f":"IFERROR(INDEX(Getränke!$A$7:$A$148,MATCH(Anzeige!B285,Getränke!$C$7:$C$148,0)),0)","v":0},{"$f":"Getränke!E30","v":3.8},0,""]
[{"$f":"Getränke!$A$2","v":"Getränke"},{"$f":"Getränke!C31","v":0},{"$f":"IFERROR(INDEX(Getränke!$A$7:$A$148,MATCH(Anzeige!B286,Getränke!$C$7:$C$148,0)),0)","v":0},{"$f":"Getränke!E31","v":0},0,""]
[{"$f":"Getränke!$A$2","v":"Getränke"},{"$f":"Getränke!C32","v":"Kalte Getränke   I   1 Liter"},{"$f":"IFERROR(INDEX(Getränke!$A$7:$A$148,MATCH(Anzeige!B287,Getränke!$C$7:$C$148,0)),0)","v":0},{"$f":"Getränke!E32","v":0},0,""]
[{"$f":"Getränke!$A$2","v":"Getränke"},{"$f":"Getränke!C33","v":0},{"$f":"IFERROR(INDEX(Getränke!$A$7:$A$148,MATCH(Anzeige!B288,Getränke!$C$7:$C$148,0)),0)","v":0},{"$f":"Getränke!E33","v":0},0,""]
[{"$f":"Getränke!$A$2","v":"Getränke"},{"$f":"Getränke!C34","v":"Valser mit Kohlensäure"},{"$f":"IFERROR(INDEX(Getränke!$A$7:$A$148,MATCH(Anzeige!B289,Getränke!$C$7:$C$148,0)),0)","v":0},{"$f":"Getränke!E34","v":4.5},0,""]
[{"$f":"Getränke!$A$2","v":"Getränke"},{"$f":"Getränke!C35","v":"Valser ohne Kohlensäure"},{"$f":"IFERROR(INDEX(Getränke!$A$7:$A$148,MATCH(Anzeige!B290,Getränke!$C$7:$C$148,0)),0)","v":0},{"$f":"Getränke!E35","v":4.5},0,""]
[{"$f":"Getränke!$A$2","v":"Getränke"},{"$f":"Getränke!C36","v":"Orangensaft, 1L"},{"$f":"IFERROR(INDEX(Getränke!$A$7:$A$148,MATCH(Anzeige!B291,Getränke!$C$7:$C$148,0)),0)","v":0},{"$f":"Getränke!E36","v":6.5},0,""]
[{"$f":"Getränke!$A$2","v":"Getränke"},{"$f":"Getränke!C37","v":"Orangensaft frisch gepresst, 1 L"},{"$f":"IFERROR(INDEX(Getränke!$A$7:$A$148,MATCH(Anzeige!B292,Getränke!$C$7:$C$148,0)),0)","v":0},{"$f":"Getränke!E37","v":15},0,""]
[{"$f":"Getränke!$A$2","v":"Getränke"},{"$f":"Getränke!C38","v":0},{"$f":"IFERROR(INDEX(Getränke!$A$7:$A$148,MATCH(Anzeige!B293,Getränke!$C$7:$C$148,0)),0)","v":0},{"$f":"Getränke!E38","v":0},0,""]
[{"$f":"Getränke!$A$2","v":"Getränke"},{"$f":"Getränke!C39","v":"Kaffee "},{"$f":"IFERROR(INDEX(Getränke!$A$7:$A$148,MATCH(Anzeige!B294,Getränke!$C$7:$C$148,0)),0)","v":0},{"$f":"Getränke!E39","v":0},0,""]
[{"$f":"Getränke!$A$2","v":"Getränke"},{"$f":"Getränke!C40","v":0},{"$f":"IFERROR(INDEX(Getränke!$A$7:$A$148,MATCH(Anzeige!B295,Getränke!$C$7:$C$148,0)),0)","v":0},{"$f":"Getränke!E40","v":0},0,""]
[{"$f":"Getränke!$A$2","v":"Getränke"},{"$f":"Getränke!C41","v":"Espresso"},{"$f":"IFERROR(INDEX(Getränke!$A$7:$A$148,MATCH(Anzeige!B296,Getränke!$C$7:$C$148,0)),0)","v":0},{"$f":"Getränke!E41","v":0.5},0,""]
[{"$f":"Getränke!$A$2","v":"Getränke"},{"$f":"Getränke!C42","v":"Kaffee Crème"},{"$f":"IFERROR(INDEX(Getränke!$A$7:$A$148,MATCH(Anzeige!B297,Getränke!$C$7:$C$148,0)),0)","v":0},{"$f":"Getränke!E42","v":0.5},0,""]
[{"$f":"Getränke!$A$2","v":"Getränke"},{"$f":"Getränke!#REF!","v":{"$error":"#REF!"}},{"$f":"IFERROR(INDEX(Getränke!$A$7:$A$148,MATCH(Anzeige!B298,Getränke!$C$7:$C$148,0)),0)","v":0},{"$f":"Getränke!#REF!","v":{"$error":"#REF!"}},0,""]
[{"$f":"Getränke!$A$2","v":"Getränke"},{"$f":"Getränke!C43","v":"Tee"},{"$f":"IFERROR(INDEX(Getränke!$A$7:$A$148,MATCH(Anzeige!B299,Getränke!$C$7:$C$148,0)),0)","v":0},{"$f":"Getränke!E43","v":0.5},0,""]
[{"$f":"Getränke!$A$2","v":"Getränke"},{"$f":"Getränke!C44","v":0},{"$f":"IFERROR(INDEX(Getränke!$A$7:$A$148,MATCH(Anzeige!B300,Getränke!$C$7:$C$148,0)),0)","v":0},{"$f":"Getränke!E44","v":0},0,""]
[{"$f":"Getränke!$A$2","v":"Getränke"},{"$f":"Getränke!C45","v":0},{"$f":"IFERROR(INDEX(Getränke!$A$7:$A$148,MATCH(Anzeige!B301,Getränke!$C$7:$C$148,0)),0)","v":0},{"$f":"Getränke!E45","v":0},0,""]
[{"$f":"Getränke!$A$2","v":"Getränke"},{"$f":"Getränke!C46","v":0},{"$f":"IFERROR(INDEX(Getränke!$A$7:$A$148,MATCH(Anzeige!B302,Getränke!$C$7:$C$148,0)),0)","v":0},{"$f":"Getränke!E46","v":0},0,""]
[{"$f":"Getränke!$A$2","v":"Getränke"},{"$f":"Getränke!C47","v":0},{"$f":"IFERROR(INDEX(Getränke!$A$7:$A$148,MATCH(Anzeige!B303,Getränke!$C$7:$C$148,0)),0)","v":0},{"$f":"Getränke!E47","v":0},0,""]
[{"$f":"Getränke!$A$2","v":"Getränke"},{"$f":"Getränke!C48","v":0},{"$f":"IFERROR(INDEX(Getränke!$A$7:$A$148,MATCH(Anzeige!B304,Getränke!$C$7:$C$148,0)),0)","v":0},{"$f":"Getränke!E48","v":0},0,""]
[{"$f":"Getränke!$A$2","v":"Getränke"},{"$f":"Getränke!C49","v":0},{"$f":"IFERROR(INDEX(Getränke!$A$7:$A$148,MATCH(Anzeige!B305,Getränke!$C$7:$C$148,0)),0)","v":0},{"$f":"Getränke!E49","v":"Preis"},0,""]
[{"$f":"Getränke!$A$2","v":"Getränke"},{"$f":"Getränke!C50","v":"Schweizer Bier"},{"$f":"IFERROR(INDEX(Getränke!$A$7:$A$148,MATCH(Anzeige!B306,Getränke!$C$7:$C$148,0)),0)","v":0},{"$f":"Getränke!E50","v":0},0,""]
[{"$f":"Getränke!$A$2","v":"Getränke"},{"$f":"Getränke!C51","v":0},{"$f":"IFERROR(INDEX(Getränke!$A$7:$A$148,MATCH(Anzeige!B307,Getränke!$C$7:$C$148,0)),0)","v":0},{"$f":"Getränke!E51","v":0},0,""]
[{"$f":"Getränke!$A$2","v":"Getränke"},{"$f":"Getränke!C52","v":"S`Bier"},{"$f":"IFERROR(INDEX(Getränke!$A$7:$A$148,MATCH(Anzeige!B308,Getränke!$C$7:$C$148,0)),0)","v":0},{"$f":"Getränke!E52","v":4.5},0,""]
[{"$f":"Getränke!$A$2","v":"Getränke"},{"$f":"Getränke!C53","v":"Feldschlösschen"},{"$f":"IFERROR(INDEX(Getränke!$A$7:$A$148,MATCH(Anzeige!B309,Getränke!$C$7:$C$148,0)),0)","v":0},{"$f":"Getränke!E53","v":3.5},0,""]
[{"$f":"Getränke!$A$2","v":"Getränke"},{"$f":"Getränke!C54","v":"Quöllfrisch Bügelflasche "},{"$f":"IFERROR(INDEX(Getränke!$A$7:$A$148,MATCH(Anzeige!B310,Getränke!$C$7:$C$148,0)),0)","v":0},{"$f":"Getränke!E54","v":5},0,""]
[{"$f":"Getränke!$A$2","v":"Getränke"},{"$f":"Getränke!C55","v":"CHOPFAB hell"},{"$f":"IFERROR(INDEX(Getränke!$A$7:$A$148,MATCH(Anzeige!B311,Getränke!$C$7:$C$148,0)),0)","v":0},{"$f":"Getränke!E55","v":4.5},0,""]
[{"$f":"Getränke!$A$2","v":"Getränke"},{"$f":"Getränke!C56","v":"CHOPFAB amber"},{"$f":"IFERROR(INDEX(Getränke!$A$7:$A$148,MATCH(Anzeige!B312,Getränke!$C$7:$C$148,0)),0)","v":0},{"$f":"Getränke!E56","v":4.5},0,""]
[{"$f":"Getränke!$A$2","v":"Getränke"},{"$f":"Getränke!C57","v":"CHOPFAB trüeb"},{"$f":"IFERROR(INDEX(Getränke!$A$7:$A$148,MATCH(Anzeige!B313,Getränke!$C$7:$C$148,0)),0)","v":0},{"$f":"Getränke!E57","v":4.5},0,""]
[{"$f":"Getränke!$A$2","v":"Getränke"},{"$f":"Getränke!C58","v":"CHOPFAB dunkel"},{"$f":"IFERROR(INDEX(Getränke!$A$7:$A$148,MATCH(Anzeige!B314,Getränke!$C$7:$C$148,0)),0)","v":0},{"$f":"Getränke!E58","v":4.5},0,""]
[{"$f":"Getränke!$A$2","v":"Getränke"},{"$f":"Getränke!C59","v":"CHOPFAB weize"},{"$f":"IFERROR(INDEX(Getränke!$A$7:$A$148,MATCH(Anzeige!B315,Getränke!$C$7:$C$148,0)),0)","v":0},{"$f":"Getränke!E59","v":4.5},0,""]
[{"$f":"Getränke!$A$2","v":"Getränke"},{"$f":"Getränke!C60","v":"CHOPFAB bleifrei (Akoholfrei)"},{"$f":"IFERROR(INDEX(Getränke!$A$7:$A$148,MATCH(Anzeige!B316,Getränke!$C$7:$C$148,0)),0)","v":0},{"$f":"Getränke!E60","v":4.5},0,""]
[{"$f":"Getränke!$A$2","v":"Getränke"},{"$f":"Getränke!C61","v":0},{"$f":"IFERROR(INDEX(Getränke!$A$7:$A$148,MATCH(Anzeige!B317,Getränke!$C$7:$C$148,0)),0)","v":0},{"$f":"Getränke!E61","v":0},0,""]
[{"$f":"Getränke!$A$2","v":"Getränke"},{"$f":"Getränke!C62","v":0},{"$f":"IFERROR(INDEX(Getränke!$A$7:$A$148,MATCH(Anzeige!B318,Getränke!$C$7:$C$148,0)),0)","v":0},{"$f":"Getränke!E62","v":0},0,""]
[{"$f":"Getränke!$A$2","v":"Getränke"},{"$f":"Getränke!C63","v":0},{"$f":"IFERROR(INDEX(Getränke!$A$7:$A$148,MATCH(Anzeige!B319,Getränke!$C$7:$C$148,0)),0)","v":0},{"$f":"Getränke!E63","v":"Preis"},0,""]
[{"$f":"Getränke!$A$2","v":"Getränke"},{"$f":"Getränke!C64","v":"Schaumwein"},{"$f":"IFERROR(INDEX(Getränke!$A$7:$A$148,MATCH(Anzeige!B320,Getränke!$C$7:$C$148,0)),0)","v":0},{"$f":"Getränke!E64","v":0},0,""]
[{"$f":"Getränke!$A$2","v":"Getränke"},{"$f":"Getränke!C65","v":0},{"$f":"IFERROR(INDEX(Getränke!$A$7:$A$148,MATCH(Anzeige!B321,Getränke!$C$7:$C$148,0)),0)","v":0},{"$f":"Getränke!E65","v":0},0,""]
[{"$f":"Getränke!$A$2","v":"Getränke"},{"$f":"Getränke!C66","v":"Prosecco brut DOC / Alexander Treviso DOS, Italien"},{"$f":"IFERROR(INDEX(Getränke!$A$7:$A$148,MATCH(Anzeige!B322,Getränke!$C$7:$C$148,0)),0)","v":0},{"$f":"Getränke!E66","v":37},0,{"$f":"IF(C322=0,\"\",\"x\")","v":""}]
[{"$f":"Getränke!$A$2","v":"Getränke"},{"$f":"Getränke!C67","v":"Rosé Spumante \"Motivo\" / Borgo Molino, Italien"},{"$f":"IFERROR(INDEX(Getränke!$A$7:$A$148,MATCH(Anzeige!B323,Getränke!$C$7:$C$148,0)),0)","v":0},{"$f":"Getränke!E67","v":39},0,""]
[{"$f":"Getränke!$A$2","v":"Getränke"},{"$f":"Getränke!C68","v":"Champagner Laurent Perrier brut"},{"$f":"IFERROR(INDEX(Getränke!$A$7:$A$148,MATCH(Anzeige!B324,Getränke!$C$7:$C$148,0)),0)","v":0},{"$f":"Getränke!E68","v":65},0,""]
[{"$f":"Getränke!$A$2","v":"Getränke"},{"$f":"Getränke!C69","v":0},{"$f":"IFERROR(INDEX(Getränke!$A$7:$A$148,MATCH(Anzeige!B325,Getränke!$C$7:$C$148,0)),0)","v":0},{"$f":"Getränke!E69","v":0},0,""]
[{"$f":"Getränke!$A$2","v":"Getränke"},{"$f":"Getränke!C70","v":"Weisswein"},{"$f":"IFERROR(INDEX(Getränke!$A$7:$A$148,MATCH(Anzeige!B326,Getränke!$C$7:$C$148,0)),0)","v":0},{"$f":"Getränke!E70","v":0},{"$f":"IFERROR(D326*C326,0)","v":0},""]
[{"$f":"Getränke!$A$2","v":"Getränke"},{"$f":"Getränke!C71","v":0},{"$f":"IFERROR(INDEX(Getränke!$A$7:$A$148,MATCH(Anzeige!B327,Getränke!$C$7:$C$148,0)),0)","v":0},{"$f":"Getränke!E71","v":0},0,""]
[{"$f":"Getränke!$A$2","v":"Getränke"},{"$f":"Getränke!C72","v":"Mythos weiss VDP Suisse "},{"$f":"IFERROR(INDEX(Getränke!$A$7:$A$148,MATCH(Anzeige!B328,Getränke!$C$7:$C$148,0)),0)","v":0},{"$f":"Getränke!E72","v":35},0,""]
[{"$f":"Getränke!$A$2","v":"Getränke"},{"$f":"Getränke!C73","v":"VdP Weingut Landolt, Kanton Zürich"},{"$f":"IFERROR(INDEX(Getränke!$A$7:$A$148,MATCH(Anzeige!B329,Getränke!$C$7:$C$148,0)),0)","v":0},{"$f":"Getränke!E73","v":0},0,""]
[{"$f":"Getränke!$A$2","v":"Getränke"},{"$f":"Getränke!C74","v":"Pinot Grigio Grivó "},{"$f":"IFERROR(INDEX(Getränke!$A$7:$A$148,MATCH(Anzeige!B330,Getränke!$C$7:$C$148,0)),0)","v":0},{"$f":"Getränke!E74","v":38},0,""]
[{"$f":"Getränke!$A$2","v":"Getränke"},{"$f":"Getränke!C75","v":"Volpe Pasini, Friaul, Italien 2017"},{"$f":"IFERROR(INDEX(Getränke!$A$7:$A$148,MATCH(Anzeige!B331,Getränke!$C$7:$C$148,0)),0)","v":0},{"$f":"Getränke!E75","v":0},0,""]
[{"$f":"Getränke!$A$2","v":"Getränke"},{"$f":"Getränke!C76","v":"Maremma DOC "},{"$f":"IFERROR(INDEX(Getränke!$A$7:$A$148,MATCH(Anzeige!B332,Getränke!$C$7:$C$148,0)),0)","v":0},{"$f":"Getränke!E76","v":42},0,""]
[{"$f":"Getränke!$A$2","v":"Getränke"},{"$f":"Getränke!C77","v":"Nudo bianco - Agircola del Nudo, Toscana, Italien"},{"$f":"IFERROR(INDEX(Getränke!$A$7:$A$148,MATCH(Anzeige!B333,Getränke!$C$7:$C$148,0)),0)","v":0},{"$f":"Getränke!E77","v":0},0,""]
[{"$f":"Getränke!$A$2","v":"Getränke"},{"$f":"Getränke!C78","v":"Langhe DOC "},{"$f":"IFERROR(INDEX(Getränke!$A$7:$A$148,MATCH(Anzeige!B334,Getränke!$C$7:$C$148,0)),0)","v":0},{"$f":"Getränke!E78","v":46},0,""]
[{"$f":"Getränke!$A$2","v":"Getränke"},{"$f":"Getränke!C79","v":"100% Chardonnay, Massolino, Italien"},{"$f":"IFERROR(INDEX(Getränke!$A$7:$A$148,MATCH(Anzeige!B335,Getränke!$C$7:$C$148,0)),0)","v":0},{"$f":"Getränke!E79","v":0},0,""]
[{"$f":"Getränke!$A$2","v":"Getränke"},{"$f":"Getränke!C80","v":0},{"$f":"IFERROR(INDEX(Getränke!$A$7:$A$148,MATCH(Anzeige!B336,Getränke!$C$7:$C$148,0)),0)","v":0},{"$f":"Getränke!E80","v":0},0,""]
[{"$f":"Getränke!$A$2","v":"Getränke"},{"$f":"Getränke!C81","v":"Rotwein"},{"$f":"IFERROR(INDEX(Getränke!$A$7:$A$148,MATCH(Anzeige!B337,Getränke!$C$7:$C$148,0)),0)","v":0},{"$f":"Getränke!E81","v":0},0,""]
[{"$f":"Getränke!$A$2","v":"Getränke"},{"$f":"Getränke!C82","v":0},{"$f":"IFERROR(INDEX(Getränke!$A$7:$A$148,MATCH(Anzeige!B338,Getränke!$C$7:$C$148,0)),0)","v":0},{"$f":"Getränke!E82","v":0},0,""]
[{"$f":"Getränke!$A$2","v":"Getränke"},{"$f":"Getränke!C83","v":"Mythos rot VdP Suisse"},{"$f":"IFERROR(INDEX(Getränke!$A$7:$A$148,MATCH(Anzeige!B339,Getränke!$C$7:$C$148,0)),0)","v":0},{"$f":"Getränke!E83","v":35},0,""]
[{"$f":"Getränke!$A$2","v":"Getränke"},{"$f":"Getränke!C84","v":"VdP Weingut Landolt, Kanton Zürich"},{"$f":"IFERROR(INDEX(Getränke!$A$7:$A$148,MATCH(Anzeige!B340,Getränke!$C$7:$C$148,0)),0)","v":0},{"$f":"Getränke!E84","v":0},0,""]
[{"$f":"Getränke!$A$2","v":"Getränke"},{"$f":"Getränke!C85","v":"Due Veneto Rosso "},{"$f":"IFERROR(INDEX(Getränke!$A$7:$A$148,MATCH(Anzeige!B341,Getränke!$C$7:$C$148,0)),0)","v":0},{"$f":"Getränke!E85","v":35},0,""]
[{"$f":"Getränke!$A$2","v":"Getränke"},{"$f":"Getränke!C86","v":"Gianni Tessari, Veneto, Italien"},{"$f":"IFERROR(INDEX(Getränke!$A$7:$A$148,MATCH(Anzeige!B342,Getränke!$C$7:$C$148,0)),0)","v":0},{"$f":"Getränke!E86","v":0},0,""]
[{"$f":"Getränke!$A$2","v":"Getränke"},{"$f":"Getränke!C87","v":"Nero d'Avola d'Altura "},{"$f":"IFERROR(INDEX(Getränke!$A$7:$A$148,MATCH(Anzeige!B343,Getränke!$C$7:$C$148,0)),0)","v":0},{"$f":"Getränke!E87","v":42},0,""]
[{"$f":"Getränke!$A$2","v":"Getränke"},{"$f":"Getränke!C88","v":"100% Nero d'Avola, Sicilia DOC, Lombardo, Italien "},{"$f":"IFERROR(INDEX(Getränke!$A$7:$A$148,MATCH(Anzeige!B344,Getränke!$C$7:$C$148,0)),0)","v":0},{"$f":"Getränke!E88","v":0},0,""]
[{"$f":"Getränke!$A$2","v":"Getränke"},{"$f":"Getränke!C89","v":"Ripasso La Casetta "},{"$f":"IFERROR(INDEX(Getränke!$A$7:$A$148,MATCH(Anzeige!B345,Getränke!$C$7:$C$148,0)),0)","v":0},{"$f":"Getränke!E89","v":47},0,""]
[{"$f":"Getränke!$A$2","v":"Getränke"},{"$f":"Getränke!C90","v":"Valpolicella classico sup. DOC Ripasso, Domini Veneti, Italien"},{"$f":"IFERROR(INDEX(Getränke!$A$7:$A$148,MATCH(Anzeige!B346,Getränke!$C$7:$C$148,0)),0)","v":0},{"$f":"Getränke!E90","v":0},0,""]
[{"$f":"'Miete Geschirr'!$A$2","v":"Miete Geschirr"},{"$f":"'Miete Geschirr'!C13","v":"Teller, 28cm"},{"$f":"IFERROR(INDEX('Miete Geschirr'!$A$13:$A$99,MATCH(Anzeige!B347,'Miete Geschirr'!$C$13:$C$99,0)),0)","v":0},{"$f":"'Miete Geschirr'!E13","v":2},{"$f":"D347*C347","v":0},""]
[{"$f":"'Miete Geschirr'!$A$2","v":"Miete Geschirr"},{"$f":"'Miete Geschirr'!C14","v":"Teller, 24cm"},{"$f":"IFERROR(INDEX('Miete Geschirr'!$A$13:$A$99,MATCH(Anzeige!B348,'Miete Geschirr'!$C$13:$C$99,0)),0)","v":0},{"$f":"'Miete Geschirr'!E14","v":2},0,""]
[{"$f":"'Miete Geschirr'!$A$2","v":"Miete Geschirr"},{"$f":"'Miete Geschirr'!C15","v":"Teller, 18cm"},{"$f":"IFERROR(INDEX('Miete Geschirr'!$A$13:$A$99,MATCH(Anzeige!B349,'Miete Geschirr'!$C$13:$C$99,0)),0)","v":0},{"$f":"'Miete Geschirr'!E15","v":1.5},0,""]
[{"$f":"'Miete Geschirr'!$A$2","v":"Miete Geschirr"},{"$f":"'Miete Geschirr'!C16","v":"Salat-Teller klein"},{"$f":"IFERROR(INDEX('Miete Geschirr'!$A$13:$A$99,MATCH(Anzeige!B350,'Miete Geschirr'!$C$13:$C$99,0)),0)","v":0},{"$f":"'Miete Geschirr'!E16","v":1},0,""]
[{"$f":"'Miete Geschirr'!$A$2","v":"Miete Geschirr"},{"$f":"'Miete Geschirr'!C17","v":"Suppenschale"},{"$f":"IFERROR(INDEX('Miete Geschirr'!$A$13:$A$99,MATCH(Anzeige!B351,'Miete Geschirr'!$C$13:$C$99,0)),0)","v":0},{"$f":"'Miete Geschirr'!E17","v":1},0,""]
[{"$f":"'Miete Geschirr'!$A$2","v":"Miete Geschirr"},{"$f":"'Miete Geschirr'!C18","v":"Kaffeetasse mit Unterteller"},{"$f":"IFERROR(INDEX('Miete Geschirr'!$A$13:$A$99,MATCH(Anzeige!B352,'Miete Geschirr'!$C$13:$C$99,0)),0)","v":0},{"$f":"'Miete Geschirr'!E18","v":2},0,""]
[{"$f":"'Miete Geschirr'!$A$2","v":"Miete Geschirr"},{"$f":"'Miete Geschirr'!C19","v":"Espressotasse mit Unterteller"},{"$f":"IFERROR(INDEX('Miete Geschirr'!$A$13:$A$99,MATCH(Anzeige!B353,'Miete Geschirr'!$C$13:$C$99,0)),0)","v":0},{"$f":"'Miete Geschirr'!E19","v":2},0,""]
[{"$f":"'Miete Geschirr'!$A$2","v":"Miete Geschirr"},{"$f":"'Miete Geschirr'!C20","v":0},{"$f":"IFERROR(INDEX('Miete Geschirr'!$A$13:$A$99,MATCH(Anzeige!B354,'Miete Geschirr'!$C$13:$C$99,0)),0)","v":0},{"$f":"'Miete Geschirr'!E20","v":0},0,""]
[{"$f":"'Miete Geschirr'!$A$2","v":"Miete Geschirr"},{"$f":"'Miete Geschirr'!C21","v":"Besteck"},{"$f":"IFERROR(INDEX('Miete Geschirr'!$A$13:$A$99,MATCH(Anzeige!B355,'Miete Geschirr'!$C$13:$C$99,0)),0)","v":0},{"$f":"'Miete Geschirr'!E21","v":0},0,""]
[{"$f":"'Miete Geschirr'!$A$2","v":"Miete Geschirr"},{"$f":"'Miete Geschirr'!C22","v":0},{"$f":"IFERROR(INDEX('Miete Geschirr'!$A$13:$A$99,MATCH(Anzeige!B356,'Miete Geschirr'!$C$13:$C$99,0)),0)","v":0},{"$f":"'Miete Geschirr'!E22","v":0},0,""]
[{"$f":"'Miete Geschirr'!$A$2","v":"Miete Geschirr"},{"$f":"'Miete Geschirr'!C23","v":"Messer"},{"$f":"IFERROR(INDEX('Miete Geschirr'!$A$13:$A$99,MATCH(Anzeige!B357,'Miete Geschirr'!$C$13:$C$99,0)),0)","v":0},{"$f":"'Miete Geschirr'!E23","v":1},0,""]
[{"$f":"'Miete Geschirr'!$A$2","v":"Miete Geschirr"},{"$f":"'Miete Geschirr'!C24","v":"Gabel"},{"$f":"IFERROR(INDEX('Miete Geschirr'!$A$13:$A$99,MATCH(Anzeige!B358,'Miete Geschirr'!$C$13:$C$99,0)),0)","v":0},{"$f":"'Miete Geschirr'!E24","v":1},0,""]
[{"$f":"'Miete Geschirr'!$A$2","v":"Miete Geschirr"},{"$f":"'Miete Geschirr'!C25","v":"Suppenlöffel"},{"$f":"IFERROR(INDEX('Miete Geschirr'!$A$13:$A$99,MATCH(Anzeige!B359,'Miete Geschirr'!$C$13:$C$99,0)),0)","v":0},{"$f":"'Miete Geschirr'!E25","v":1},0,""]
[{"$f":"'Miete Geschirr'!$A$2","v":"Miete Geschirr"},{"$f":"'Miete Geschirr'!C26","v":"Kaffeelöffel"},{"$f":"IFERROR(INDEX('Miete Geschirr'!$A$13:$A$99,MATCH(Anzeige!B360,'Miete Geschirr'!$C$13:$C$99,0)),0)","v":0},{"$f":"'Miete Geschirr'!E26","v":1},0,""]
[{"$f":"'Miete Geschirr'!$A$2","v":"Miete Geschirr"},{"$f":"'Miete Geschirr'!C27","v":"Schöpfkelle"},{"$f":"IFERROR(INDEX('Miete Geschirr'!$A$13:$A$99,MATCH(Anzeige!B361,'Miete Geschirr'!$C$13:$C$99,0)),0)","v":0},{"$f":"'Miete Geschirr'!E27","v":2},0,""]
[{"$f":"'Miete Geschirr'!$A$2","v":"Miete Geschirr"},{"$f":"'Miete Geschirr'!C28","v":"Zange"},{"$f":"IFERROR(INDEX('Miete Geschirr'!$A$13:$A$99,MATCH(Anzeige!B362,'Miete Geschirr'!$C$13:$C$99,0)),0)","v":0},{"$f":"'Miete Geschirr'!E28","v":2},0,""]
[{"$f":"'Miete Geschirr'!$A$2","v":"Miete Geschirr"},{"$f":"'Miete Geschirr'!C29","v":0},{"$f":"IFERROR(INDEX('Miete Geschirr'!$A$13:$A$99,MATCH(Anzeige!B363,'Miete Geschirr'!$C$13:$C$99,0)),0)","v":0},{"$f":"'Miete Geschirr'!E29","v":0},0,""]
[{"$f":"'Miete Geschirr'!$A$2","v":"Miete Geschirr"},{"$f":"'Miete Geschirr'!C30","v":"Gläser"},{"$f":"IFERROR(INDEX('Miete Geschirr'!$A$13:$A$99,MATCH(Anzeige!B364,'Miete Geschirr'!$C$13:$C$99,0)),0)","v":0},{"$f":"'Miete Geschirr'!E30","v":0},0,""]
[{"$f":"'Miete Geschirr'!$A$2","v":"Miete Geschirr"},{"$f":"'Miete Geschirr'!C31","v":0},{"$f":"IFERROR(INDEX('Miete Geschirr'!$A$13:$A$99,MATCH(Anzeige!B365,'Miete Geschirr'!$C$13:$C$99,0)),0)","v":0},{"$f":"'Miete Geschirr'!E31","v":0},0,""]
[{"$f":"'Miete Geschirr'!$A$2","v":"Miete Geschirr"},{"$f":"'Miete Geschirr'!C32","v":"Champagnerglas"},{"$f":"IFERROR(INDEX('Miete Geschirr'!$A$13:$A$99,MATCH(Anzeige!B366,'Miete Geschirr'!$C$13:$C$99,0)),0)","v":0},{"$f":"'Miete Geschirr'!E32","v":1},0,""]
[{"$f":"'Miete Geschirr'!$A$2","v":"Miete Geschirr"},{"$f":"'Miete Geschirr'!C33","v":"Rotweinglas"},{"$f":"IFERROR(INDEX('Miete Geschirr'!$A$13:$A$99,MATCH(Anzeige!B367,'Miete Geschirr'!$C$13:$C$99,0)),0)","v":0},{"$f":"'Miete Geschirr'!E33","v":1},0,""]
[{"$f":"'Miete Geschirr'!$A$2","v":"Miete Geschirr"},{"$f":"'Miete Geschirr'!C34","v":"Weissweinglas"},{"$f":"IFERROR(INDEX('Miete Geschirr'!$A$13:$A$99,MATCH(Anzeige!B368,'Miete Geschirr'!$C$13:$C$99,0)),0)","v":0},{"$f":"'Miete Geschirr'!E34","v":1},0,""]
[{"$f":"'Miete Geschirr'!$A$2","v":"Miete Geschirr"},{"$f":"'Miete Geschirr'!C35","v":"Wasserglas, 2.5dl"},{"$f":"IFERROR(INDEX('Miete Geschirr'!$A$13:$A$99,MATCH(Anzeige!B369,'Miete Geschirr'!$C$13:$C$99,0)),0)","v":0},{"$f":"'Miete Geschirr'!E35","v":1},0,""]
[{"$f":"'Miete Geschirr'!$A$2","v":"Miete Geschirr"},{"$f":"'Miete Geschirr'!C36","v":0},{"$f":"IFERROR(INDEX('Miete Geschirr'!$A$13:$A$99,MATCH(Anzeige!B370,'Miete Geschirr'!$C$13:$C$99,0)),0)","v":0},{"$f":"'Miete Geschirr'!E36","v":0},0,""]
[{"$f":"'Miete Geschirr'!$A$2","v":"Miete Geschirr"},{"$f":"'Miete Geschirr'!C37","v":"Zubehör"},{"$f":"IFERROR(INDEX('Miete Geschirr'!$A$13:$A$99,MATCH(Anzeige!B371,'Miete Geschirr'!$C$13:$C$99,0)),0)","v":0},{"$f":"'Miete Geschirr'!E37","v":0},0,""]
[{"$f":"'Miete Geschirr'!$A$2","v":"Miete Geschirr"},{"$f":"'Miete Geschirr'!C38","v":0},{"$f":"IFERROR(INDEX('Miete Geschirr'!$A$13:$A$99,MATCH(Anzeige!B372,'Miete Geschirr'!$C$13:$C$99,0)),0)","v":0},{"$f":"'Miete Geschirr'!E38","v":0},0,""]
[{"$f":"'Miete Geschirr'!$A$2","v":"Miete Geschirr"},{"$f":"'Miete Geschirr'!C39","v":"Korkenzieher"},{"$f":"IFERROR(INDEX('Miete Geschirr'!$A$13:$A$99,MATCH(Anzeige!B373,'Miete Geschirr'!$C$13:$C$99,0)),0)","v":0},{"$f":"'Miete Geschirr'!E39","v":15},0,""]
[{"$f":"'Miete Geschirr'!$A$2","v":"Miete Geschirr"},{"$f":"'Miete Geschirr'!C40","v":"Grosses Messer"},{"$f":"IFERROR(INDEX('Miete Geschirr'!$A$13:$A$99,MATCH(Anzeige!B374,'Miete Geschirr'!$C$13:$C$99,0)),0)","v":0},{"$f":"'Miete Geschirr'!E40","v":25},0,""]
[{"$f":"'Miete Geschirr'!$A$2","v":"Miete Geschirr"},{"$f":"'Miete Geschirr'!C41","v":"Schale"},{"$f":"IFERROR(INDEX('Miete Geschirr'!$A$13:$A$99,MATCH(Anzeige!B375,'Miete Geschirr'!$C$13:$C$99,0)),0)","v":0},{"$f":"'Miete Geschirr'!E41","v":12},0,""]
[{"$f":"'Miete Geschirr'!$A$2","v":"Miete Geschirr"},{"$f":"'Miete Geschirr'!C42","v":"Platte"},{"$f":"IFERROR(INDEX('Miete Geschirr'!$A$13:$A$99,MATCH(Anzeige!B376,'Miete Geschirr'!$C$13:$C$99,0)),0)","v":0},{"$f":"'Miete Geschirr'!E42","v":14.5},{"$f":"D376*C376","v":0},""]
[{"$f":"'Miete Geschirr'!$A$2","v":"Miete Geschirr"},{"$f":"'Miete Geschirr'!C43","v":"Korb"},{"$f":"IFERROR(INDEX('Miete Geschirr'!$A$13:$A$99,MATCH(Anzeige!B377,'Miete Geschirr'!$C$13:$C$99,0)),0)","v":0},{"$f":"'Miete Geschirr'!E43","v":8},0,""]
[{"$f":"'Miete Geschirr'!$A$2","v":"Miete Geschirr"},{"$f":"'Miete Geschirr'!C44","v":"Thermoskanne"},{"$f":"IFERROR(INDEX('Miete Geschirr'!$A$13:$A$99,MATCH(Anzeige!B378,'Miete Geschirr'!$C$13:$C$99,0)),0)","v":0},{"$f":"'Miete Geschirr'!E44","v":15},0,""]
[{"$f":"'Miete Geschirr'!$A$2","v":"Miete Geschirr"},{"$f":"'Miete Geschirr'!#REF!","v":{"$error":"#REF!"}},{"$f":"IFERROR(INDEX('Miete Geschirr'!$A$13:$A$99,MATCH(Anzeige!B379,'Miete Geschirr'!$C$13:$C$99,0)),0)","v":0},{"$f":"'Miete Geschirr'!#REF!","v":{"$error":"#REF!"}},{"$error":"#REF!"},""]
[{"$f":"'Miete Geschirr'!$A$2","v":"Miete Geschirr"},{"$f":"'Miete Geschirr'!C45","v":"Tischtuch Stoff, weiss, 1.4 x 1.9 m"},{"$f":"IFERROR(INDEX('Miete Geschirr'!$A$13:$A$99,MATCH(Anzeige!B380,'Miete Geschirr'!$C$13:$C$99,0)),0)","v":0},{"$f":"'Miete Geschirr'!E45","v":5},0,""]
[{"$f":"'Miete Geschirr'!$A$2","v":"Miete Geschirr"},{"$f":"'Miete Geschirr'!C46","v":"Stoff-Serviette, weiss, 50 x 50 cm"},{"$f":"IFERROR(INDEX('Miete Geschirr'!$A$13:$A$99,MATCH(Anzeige!B381,'Miete Geschirr'!$C$13:$C$99,0)),0)","v":0},{"$f":"'Miete Geschirr'!E46","v":2.5},0,""]
[{"$f":"'Miete Geschirr'!$A$2","v":"Miete Geschirr"},{"$f":"'Miete Geschirr'!C47","v":"Papier-Serviette, weiss, 33 x 33 cm"},{"$f":"IFERROR(INDEX('Miete Geschirr'!$A$13:$A$99,MATCH(Anzeige!B382,'Miete Geschirr'!$C$13:$C$99,0)),0)","v":0},{"$f":"'Miete Geschirr'!E47","v":0.2},0,""]
[{"$f":"'Miete Geschirr'!$A$2","v":"Miete Geschirr"},{"$f":"'Miete Geschirr'!C48","v":"Papier-Serviette, farbig, 40 x 40 cm"},{"$f":"IFERROR(INDEX('Miete Geschirr'!$A$13:$A$99,MATCH(Anzeige!B383,'Miete Geschirr'!$C$13:$C$99,0)),0)","v":0},{"$f":"'Miete Geschirr'!E48","v":0.45},0,""]
[{"$f":"'Miete Geschirr'!$A$2","v":"Miete Geschirr"},{"$f":"'Miete Geschirr'!C49","v":0},{"$f":"IFERROR(INDEX('Miete Geschirr'!$A$13:$A$99,MATCH(Anzeige!B384,'Miete Geschirr'!$C$13:$C$99,0)),0)","v":0},{"$f":"'Miete Geschirr'!E49","v":0},0,""]
[{"$f":"'Miete Geschirr'!$A$2","v":"Miete Geschirr"},{"$f":"'Miete Geschirr'!C50","v":"Take-Away"},{"$f":"IFERROR(INDEX('Miete Geschirr'!$A$13:$A$99,MATCH(Anzeige!B385,'Miete Geschirr'!$C$13:$C$99,0)),0)","v":0},{"$f":"'Miete Geschirr'!E50","v":0},0,""]
[{"$f":"'Miete Geschirr'!$A$2","v":"Miete Geschirr"},{"$f":"'Miete Geschirr'!C51","v":0},{"$f":"IFERROR(INDEX('Miete Geschirr'!$A$13:$A$99,MATCH(Anzeige!B386,'Miete Geschirr'!$C$13:$C$99,0)),0)","v":0},{"$f":"'Miete Geschirr'!E51","v":0},0,{"$f":"IF(C386=0,\"\",\"x\")","v":""}]
[{"$f":"'Miete Geschirr'!$A$2","v":"Miete Geschirr"},{"$f":"'Miete Geschirr'!C52","v":"Besteckset"},{"$f":"IFERROR(INDEX('Miete Geschirr'!$A$13:$A$99,MATCH(Anzeige!B387,'Miete Geschirr'!$C$13:$C$99,0)),0)","v":0},{"$f":"'Miete Geschirr'!E52","v":0.3},0,""]
[{"$f":"'Miete Geschirr'!$A$2","v":"Miete Geschirr"},{"$f":"'Miete Geschirr'!C53","v":"Pappteller"},{"$f":"IFERROR(INDEX('Miete Geschirr'!$A$13:$A$99,MATCH(Anzeige!B388,'Miete Geschirr'!$C$13:$C$99,0)),0)","v":0},{"$f":"'Miete Geschirr'!E53","v":1.2},0,""]
[{"$f":"'Miete Geschirr'!$A$2","v":"Miete Geschirr"},{"$f":"'Miete Geschirr'!C54","v":"Becher"},{"$f":"IFERROR(INDEX('Miete Geschirr'!$A$13:$A$99,MATCH(Anzeige!B389,'Miete Geschirr'!$C$13:$C$99,0)),0)","v":0},{"$f":"'Miete Geschirr'!E54","v":0.9},0,""]